2CCN - Level 2 Cost Centre Name,,9CCN - Level 9 Cost Centre Name,9CCC - Level 9 Cost Centre Code,9AN - Level 9 Account Name,9AC - Level 9 Account Code,Transaction Description,Date Paid,Transaction Reference,Analysed Amount,2AC - Level 2 Account Codes,Supplier Name,Supplier Code
Gloucester City Council,23UE,Economic Development,FP300,Other Minor Supplies Services,5590,REDACTED,01/04/2014,380666,1346.55,NET,Anderson Recruitment Ltd,14646H
Gloucester City Council,23UE,Economic Development,FP300,Other Minor Supplies Services,5590,REDACTED,01/04/2014,379554,671.93,NET,Anderson Recruitment Ltd,14646H
Gloucester City Council,23UE,Homelessness,CH120,Rent In Advance,5516,Rent in advance,01/04/2014,381749,473.76,NET,Surelet,06858N
Gloucester City Council,23UE,Homelessness Prevention,CH122,Fees For Services Received,5350,Rent in advance,01/04/2014,381749,550,NET,Surelet,06858N
Gloucester City Council,23UE,Land Searches,RO300,Fees For Services Received,5350,Land charges 2013/14 Q3 Gloucester 91,01/04/2014,381746,1820,NET,Gloucestershire County Council,18650D
Gloucester City Council,23UE,Off Street Car Parks,PP110,Fees For Services Received,5350,overcharge P&D machine,01/04/2014,381747,0.6,NET,REDACTED,REDACTED
Gloucester City Council,23UE,Tea Room,HC500,Other Minor Supplies Services,5590,fruit & flowers,01/04/2014,381748,20.8,NET,Carols Fruit & Flower Basket,01274X
Gloucester City Council,23UE,Blackfriars,LA609,Hire Of Equipment,5020,STAGE HIRE,02/04/2014,381801,80,NET,REDACTED,REDACTED
Gloucester City Council,23UE,Blackfriars,LA609,Materials For Sale,5080,SALE OF ARTWORK,02/04/2014,381751,60,NET,REDACTED,REDACTED
Gloucester City Council,23UE,Blackfriars,LA609,Sale Of Goods And Services,9230,SALE OF ARTWORK,02/04/2014,381751,-7.5,NET,REDACTED,REDACTED
Gloucester City Council,23UE,Business Transformation & Tech,RT700,Computer Hardware Maintenance,5426,Environ Serv: Maintenance on copier,02/04/2014,381156,176.29,NET,Stanford Marsh Ltd*,51139M
Gloucester City Council,23UE,Business Transformation & Tech,RT700,Computer Network Maintenance,5443,support contract Apr14-Mar15,02/04/2014,380486,24266.81,NET,Indigo Telecom Group Ltd,09159V
Gloucester City Council,23UE,Business Transformation & Tech,RT700,Computer Software Maintenance,5427,14/15 payment mgmt systems maintenance,02/04/2014,380511,19420.6,NET,Capita Business Services Limited*,54095C
Gloucester City Council,23UE,Business Transformation & Tech,RT700,Computer Software Maintenance,5427,2014/15 OpenExec support,02/04/2014,380357,37361.63,NET,Civica Uk Ltd,10841X
Gloucester City Council,23UE,Business Transformation & Tech,RT700,Computer Software Maintenance,5427,BT&T-computers related,02/04/2014,381595,13057.5,NET,Esri (Uk) Ltd,57836X
Gloucester City Council,23UE,Business Transformation & Tech,RT700,Computer Software Maintenance,5427,Various ORB It Service argeements,02/04/2014,381016,36357.15,NET,Idox Group,07229U
Gloucester City Council,23UE,Financial Services,RT200,Consultants Fees,5349,REDACTED,02/04/2014,381666,2175,NET,Robert Half Ltd,03959K
Gloucester City Council,23UE,Gloucester Guildhall,LA100,Service Charges,3020,Guildhall: Broadband termination fees,02/04/2014,380974,60,NET,Connexus Networks Ltd,07090B
Gloucester City Council,23UE,REDACTED,REDACTED,REDACTED,REDACTED,REDACTED,02/04/2014,REDACTED,966.73,NET,REDACTED,REDACTED
Gloucester City Council,23UE,Solace Project,FP843,Other Minor Supplies Services,5590,Glos city Homes: ASB -  March 2014,02/04/2014,381686,3250,NET,Gloucester City Homes,05244T
Gloucester City Council,23UE,Celebratory Lights,LT302,Christmas Lights,5024,Supplies,03/04/2014,381877,16485.68,NET,REDACTED,REDACTED
Gloucester City Council,23UE,City Museum And Art Gallery,LM200,Catering Provisions -Food,5110,Food,03/04/2014,381815,7.44,NET,Total Produce Gloucester,12645E
Gloucester City Council,23UE,City Museum And Art Gallery,LM200,Catering Provisions -Food,5110,Food,03/04/2014,381825,4.96,NET,Total Produce Gloucester,12645E
Gloucester City Council,23UE,City Museum And Art Gallery,LM200,Catering Provisions -Food,5110,Food,03/04/2014,381826,7.44,NET,Total Produce Gloucester,12645E
Gloucester City Council,23UE,City Museum And Art Gallery,LM200,Catering Provisions -Food,5110,Food,03/04/2014,381858,7.44,NET,Total Produce Gloucester,12645E
Gloucester City Council,23UE,City Museum Catering,LM202,Catering Provisions -Food,5110,Food,03/04/2014,381860,36,NET,Taynton Farm Foods,09653F
Gloucester City Council,23UE,Community Safety Projects,FP500,Basic Pay -Admin /Prof Staff,2601,REDACTED,03/04/2014,381816,191.46,NET,Travail Employment Ltd,49371W
Gloucester City Council,23UE,Contact Centre,RB300,Basic Pay -Admin /Prof Staff,2601,Staff w/e 21/03/2014,03/04/2014,381453,1609.38,NET,One To One Recruitment,04752H
Gloucester City Council,23UE,Docks Complex - Catering Servs,RB110,Catering Provisions -Food,5110,Food,03/04/2014,381827,40.35,NET,Total Produce Gloucester,12645E
Gloucester City Council,23UE,Docks Complex - Catering Servs,RB110,Catering Provisions -Food,5110,Food,03/04/2014,381828,23.02,NET,Total Produce Gloucester,12645E
Gloucester City Council,23UE,Docks Complex - Catering Servs,RB110,Catering Provisions -Food,5110,Food,03/04/2014,381829,13.29,NET,Total Produce Gloucester,12645E
Gloucester City Council,23UE,Docks Complex - Catering Servs,RB110,Catering Provisions -Food,5110,Food,03/04/2014,381830,33.64,NET,Total Produce Gloucester,12645E
Gloucester City Council,23UE,Docks Complex - Catering Servs,RB110,Catering Provisions -Food,5110,Food,03/04/2014,381859,38.47,NET,Total Produce Gloucester,12645E
Gloucester City Council,23UE,Financial Services,RT200,Basic Pay - Temporary Staff,2751,REDACTED,03/04/2014,381285,112.18,NET,Robert Half Ltd,03959K
Gloucester City Council,23UE,Financial Services,RT200,Basic Pay - Temporary Staff,2751,REDACTED,03/04/2014,381664,415.44,NET,Robert Half Ltd,03959K
Gloucester City Council,23UE,Guildhall Bar And Caf�,LA210,Catering Provisions -Food,5110,Food,03/04/2014,381811,4.96,NET,Total Produce Gloucester,12645E
Gloucester City Council,23UE,Guildhall Bar And Caf�,LA210,Catering Provisions -Food,5110,Food,03/04/2014,381824,4.96,NET,Total Produce Gloucester,12645E
Gloucester City Council,23UE,Guildhall Bar And Caf�,LA210,Catering Provisions -Food,5110,Food,03/04/2014,381849,4.96,NET,Total Produce Gloucester,12645E
Gloucester City Council,23UE,Guildhall Bar And Caf�,LA210,Catering Provisions -Food,5110,Food,03/04/2014,381850,4.96,NET,Total Produce Gloucester,12645E
Gloucester City Council,23UE,Guildhall Bar And Caf�,LA210,Catering Provisions -Food,5110,Food,03/04/2014,381851,4.96,NET,Total Produce Gloucester,12645E
Gloucester City Council,23UE,Guildhall Bar And Caf�,LA210,Catering Provisions -Food,5110,Food,03/04/2014,381852,4.96,NET,Total Produce Gloucester,12645E
Gloucester City Council,23UE,Guildhall Bar And Caf�,LA210,Catering Provisions -Food,5110,Food,03/04/2014,381853,4.96,NET,Total Produce Gloucester,12645E
Gloucester City Council,23UE,Guildhall Bar And Caf�,LA210,Catering Provisions -Food,5110,Food,03/04/2014,381854,4.96,NET,Total Produce Gloucester,12645E
Gloucester City Council,23UE,Guildhall Bar And Caf�,LA210,Catering Provisions -Food,5110,Food,03/04/2014,381855,4.96,NET,Total Produce Gloucester,12645E
Gloucester City Council,23UE,Guildhall Bar And Caf�,LA210,Catering Provisions -Food,5110,Food,03/04/2014,381856,4.96,NET,Total Produce Gloucester,12645E
Gloucester City Council,23UE,Guildhall Bar And Caf�,LA210,Catering Provisions -Food,5110,Food,03/04/2014,381857,4.96,NET,Total Produce Gloucester,12645E
Gloucester City Council,23UE,Guildhall Bar And Caf�,LA210,Catering Provisions -Food,5110,Food,03/04/2014,381878,162.81,NET,Woodward Foodservice,10714F
Gloucester City Council,23UE,REDACTED,REDACTED,REDACTED,REDACTED,REDACTED,03/04/2014,REDACTED,163.2,NET,REDACTED,REDACTED
Gloucester City Council,23UE,REDACTED,REDACTED,REDACTED,REDACTED,REDACTED,03/04/2014,REDACTED,45.9,NET,REDACTED,REDACTED
Gloucester City Council,23UE,REDACTED,REDACTED,REDACTED,REDACTED,REDACTED,03/04/2014,REDACTED,121.55,NET,REDACTED,REDACTED
Gloucester City Council,23UE,REDACTED,REDACTED,REDACTED,REDACTED,REDACTED,03/04/2014,REDACTED,191.25,NET,REDACTED,REDACTED
Gloucester City Council,23UE,REDACTED,REDACTED,REDACTED,REDACTED,REDACTED,03/04/2014,REDACTED,654.5,NET,REDACTED,REDACTED
Gloucester City Council,23UE,REDACTED,REDACTED,REDACTED,REDACTED,REDACTED,03/04/2014,REDACTED,242.25,NET,REDACTED,REDACTED
Gloucester City Council,23UE,REDACTED,REDACTED,REDACTED,REDACTED,REDACTED,03/04/2014,REDACTED,713.15,NET,REDACTED,REDACTED
Gloucester City Council,23UE,REDACTED,REDACTED,REDACTED,REDACTED,REDACTED,03/04/2014,REDACTED,127.5,NET,REDACTED,REDACTED
Gloucester City Council,23UE,Inhouse Training,EH200,Vocational Training,2970,REDACTED,03/04/2014,380975,130,NET,Aspire Sports & Cultural Trust,08135V
Gloucester City Council,23UE,Off Street Car Parks,PP110,Fees For Services Received,5350,Airtime April,03/04/2014,381296,498.94,NET,Parkeon Ltd,03238G
Gloucester City Council,23UE,Wake Room,HC501,Catering Provisions -Food,5110,Food,03/04/2014,381813,60.06,NET,Total Produce Gloucester,12645E
Gloucester City Council,23UE,Wake Room,HC501,Catering Provisions -Food,5110,Food,03/04/2014,381814,12.17,NET,Total Produce Gloucester,12645E
Gloucester City Council,23UE,Wake Room,HC501,Catering Provisions -Food,5110,Food,03/04/2014,381819,20.27,NET,Total Produce Gloucester,12645E
Gloucester City Council,23UE,Wake Room,HC501,Catering Provisions -Food,5110,Food,03/04/2014,381820,13.74,NET,Total Produce Gloucester,12645E
Gloucester City Council,23UE,Wake Room,HC501,Catering Provisions -Food,5110,Food,03/04/2014,381821,40.71,NET,Total Produce Gloucester,12645E
Gloucester City Council,23UE,Wake Room,HC501,Catering Provisions -Food,5110,Food,03/04/2014,381822,115.54,NET,Total Produce Gloucester,12645E
Gloucester City Council,23UE,Wake Room,HC501,Catering Provisions -Food,5110,Food,03/04/2014,381823,22.75,NET,Total Produce Gloucester,12645E
Gloucester City Council,23UE,Wake Room,HC501,Catering Provisions -Food,5110,Food,03/04/2014,381839,71.44,NET,3663,55585U
Gloucester City Council,23UE,Wake Room,HC501,Catering Provisions -Food,5110,Food,03/04/2014,381840,17.03,NET,Total Produce Gloucester,12645E
Gloucester City Council,23UE,Wake Room,HC501,Catering Provisions -Food,5110,Food,03/04/2014,381841,28.68,NET,Total Produce Gloucester,12645E
Gloucester City Council,23UE,Wake Room,HC501,Catering Provisions -Food,5110,Food,03/04/2014,381842,25.7,NET,Total Produce Gloucester,12645E
Gloucester City Council,23UE,Wake Room,HC501,Catering Provisions -Food,5110,Food,03/04/2014,381843,27.46,NET,Total Produce Gloucester,12645E
Gloucester City Council,23UE,Wake Room,HC501,Catering Provisions -Food,5110,Food,03/04/2014,381844,11.16,NET,Total Produce Gloucester,12645E
Gloucester City Council,23UE,Wake Room,HC501,Catering Provisions -Food,5110,Food,03/04/2014,381845,74.91,NET,Total Produce Gloucester,12645E
Gloucester City Council,23UE,Wake Room,HC501,Catering Provisions -Food,5110,Food,03/04/2014,381846,19.11,NET,Total Produce Gloucester,12645E
Gloucester City Council,23UE,Wake Room,HC501,Catering Provisions -Food,5110,Food,03/04/2014,381847,25.09,NET,Total Produce Gloucester,12645E
Gloucester City Council,23UE,Wake Room,HC501,Catering Provisions -Food,5110,Food,03/04/2014,381848,9.92,NET,Total Produce Gloucester,12645E
Gloucester City Council,23UE,Website Rebuild,RY573,Consultants Fees,0030,New Daily Rate,03/04/2014,381802,253.4,CAP,Patzone It Solutions Ltd,13059R
Gloucester City Council,23UE,Aspire Admin Charges,LC105,Other Minor Income,9900,BAILIFF PAYMENTS 21/03/14,04/04/2014,381960,349.1,NET,Aspire Sports & Cultural Trust,08135V
Gloucester City Council,23UE,Building Control,PT400,Basic Pay - Temporary Staff,2751,REDACTED,04/04/2014,381970,1709.37,NET,Thatcher Associates Ltd,14060X
Gloucester City Council,23UE,Business Grants,GY007,Contract Payments,0020,Flag Bundle,04/04/2014,381993,276,CAP,7 Bamboos Rugby Ltd,14375S
Gloucester City Council,23UE,Business Grants,GY007,Contract Payments,0020,Marketing Campaign,04/04/2014,381994,475.2,CAP,7 Bamboos Rugby Ltd,14375S
Gloucester City Council,23UE,Business Support,PT250,Fuel,4012,fuel,04/04/2014,381944,211.24,NET,Allstar Business Solutions Ltd (Arval),06594A
Gloucester City Council,23UE,Cemeteries,HC300,Basic Pay - Cleaners,2401,tyres,04/04/2014,381947,221.64,NET,A T S Euromaster Ltd,01860B
Gloucester City Council,23UE,Cemeteries,HC300,Basic Pay - Cleaners,2401,Crem: car repairs,04/04/2014,381948,48.88,NET,A T S Euromaster Ltd,01860B
Gloucester City Council,23UE,City Museum And Art Gallery,LM200,Exhibits And Collections,5038,Folk Museum - Print,04/04/2014,381946,105,NET,Alpha Colour Printers Ltd,00945B
Gloucester City Council,23UE,City Museum And Art Gallery,LM200,Exhibits And Collections,5038,Folk Museum: printing,04/04/2014,381945,745,NET,Alpha Colour Printers Ltd,00945B
Gloucester City Council,23UE,Cleansing Services Admin,HI100,Maint Of Grounds - General,3030,Place Stone,04/04/2014,381976,850,NET,Mcallister  Masonry,28900K
Gloucester City Council,23UE,Client Revs & Bens Contract,RT240,Other Minor Supplies Services,5590,goods,04/04/2014,381470,666.25,NET,Banking Automation Ltd,10352U
Gloucester City Council,23UE,Corporate Expenses,RC110,Subscriptions,5600,Annual Subscription,04/04/2014,381977,5630,NET,South West Councils,56523H
Gloucester City Council,23UE,Countryside Unit,LP201,Vocational Training,2970,Training,04/04/2014,381956,50,NET,Countryside Management Association,56073U
Gloucester City Council,23UE,Crematorium,HC200,General Repair/Maint Buildings,3000,Air Freshner,04/04/2014,381969,1350,NET,Pyramid Hygiene Ltd,01897B
Gloucester City Council,23UE,Crematorium,HC200,General Repair/Maint Buildings,3000,Crem: Design,04/04/2014,381949,707.37,NET,Zagota Creations,03211D
Gloucester City Council,23UE,Crematorium,HC200,Repair/Maint Of Fixed Plant,3006,"Crem: Service charge, ceramic filter etc",04/04/2014,381962,1102.5,NET,Facultatieve Technologies Ltd,51210H
Gloucester City Council,23UE,Economic Development,FP300,Other Minor Supplies Services,5590,Translation,04/04/2014,381990,991.86,NET,Smartlyte Ltd,14320U
Gloucester City Council,23UE,Electrical Investigatory Works,RY142,Contract Payments,0020,Management survey and plan,04/04/2014,381958,6568,CAP,Enquin Environmental,00748F
Gloucester City Council,23UE,General Drainage Works,PY241,Contract Payments,0020,Surveys,04/04/2014,381659,3912.4,CAP,Rab Consultants,13415R
Gloucester City Council,23UE,REDACTED,REDACTED,REDACTED,REDACTED,REDACTED,04/04/2014,REDACTED,612,NET,REDACTED,REDACTED
Gloucester City Council,23UE,REDACTED,REDACTED,REDACTED,REDACTED,REDACTED,04/04/2014,REDACTED,440,NET,REDACTED,REDACTED
Gloucester City Council,23UE,REDACTED,REDACTED,REDACTED,REDACTED,REDACTED,04/04/2014,REDACTED,65,NET,REDACTED,REDACTED
Gloucester City Council,23UE,REDACTED,REDACTED,REDACTED,REDACTED,REDACTED,04/04/2014,REDACTED,165.3,NET,REDACTED,REDACTED
Gloucester City Council,23UE,REDACTED,REDACTED,REDACTED,REDACTED,REDACTED,04/04/2014,REDACTED,42.6,NET,REDACTED,REDACTED
Gloucester City Council,23UE,REDACTED,REDACTED,REDACTED,REDACTED,REDACTED,04/04/2014,REDACTED,521.86,NET,REDACTED,REDACTED
Gloucester City Council,23UE,Hempsted Market/Car Boot,HM234,Maint Of Grounds - General,3030,Lamp Repair,04/04/2014,381992,100,NET,REDACTED,REDACTED
Gloucester City Council,23UE,Herbert Reception Upgrade,RY201,Contract Payments,0020,Reception Refurb,04/04/2014,381991,74662.97,CAP,Pj Engineering Consultants Ltd,14428W
Gloucester City Council,23UE,Investment Property,RB500,General Repair/Maint Buildings,3000,Cherry Picker,04/04/2014,381836,280,NET,REDACTED,REDACTED
Gloucester City Council,23UE,Legal Services,RS200,Basic Pay - Temporary Staff,2751,REDACTED,04/04/2014,381675,487.29,NET,Premiere Employment Ltd,55468Z
Gloucester City Council,23UE,National Express,LT105,Materials For Sale,5080,Sales March 14,04/04/2014,381972,12908.3,NET,National Express Ltd,31455K
Gloucester City Council,23UE,National Express,LT105,Materials For Sale,5080,Sales March 14,04/04/2014,381996,70,NET,Society Of London Theatre,05656Z
Gloucester City Council,23UE,National Express,LT105,Sale Of Goods And Services,9230,Sales March 14,04/04/2014,381972,-1250.01,NET,National Express Ltd,31455K
Gloucester City Council,23UE,National Express,LT105,Sale Of Goods And Services,9230,Sales March 14,04/04/2014,381996,-3.5,NET,Society Of London Theatre,05656Z
Gloucester City Council,23UE,Registration Of Electors,RS400,Postages,5400,Post,04/04/2014,381979,798.35,NET,Royal Mail S.Wales & South West,35830S
Gloucester City Council,23UE,Registration Of Electors,RS400,Stationery,5302,Sundries Bag,04/04/2014,381975,1508.55,NET,Shaw & Sons Ltd,40310F
Gloucester City Council,23UE,Stationery Services,RS150,Stationery,5302,Business support: stationary,04/04/2014,381736,57.35,NET,Lyreco Uk Ltd,11746G
Gloucester City Council,23UE,Stationery Services,RS150,Stationery,5302,Reception Refurb,04/04/2014,381835,516.45,NET,Premier Paper Group Ltd,09166Y
Gloucester City Council,23UE,Wake Room,HC501,Catering Provisions -Food,5110,Food,04/04/2014,381876,318.04,NET,3663,55585U
Gloucester City Council,23UE,Wake Room,HC501,Other Minor Supplies Services,5590,Filter Cartridge,04/04/2014,381812,87,NET,Space Catering Equipment Ltd,42828RV
Gloucester City Council,23UE,Asset Management,RS300,Basic Pay - Temporary Staff,2751,Asset Mgt: consultancy serv,07/04/2014,382040,6775,NET,Ardley Associates,09369F
Gloucester City Council,23UE,REDACTED,REDACTED,REDACTED,REDACTED,REDACTED,07/04/2014,REDACTED,300,NET,REDACTED,REDACTED
Gloucester City Council,23UE,Blackfriars,LA609,Cleaning Materials,3600,cleaning,07/04/2014,382053,232.49,NET,Gpp Hygiene,06080P
Gloucester City Council,23UE,REDACTED,REDACTED,REDACTED,REDACTED,REDACTED,07/04/2014,REDACTED,15,NET,REDACTED,REDACTED
Gloucester City Council,23UE,Business Transformation & Tech,RT700,Computer Software Maintenance,5427,estates management etc,07/04/2014,382042,12873.73,NET,Idox Group,07229U
Gloucester City Council,23UE,Cemeteries,HC300,Vocational Training,2970,Crem: membership cemetery & crem mgt,07/04/2014,382046,90,NET,Institute Of Cemetery & Crematorium M'Ment,01116T
Gloucester City Council,23UE,Cems/Crems Admin,HC100,Maintenance Of Equipment,5030,Crem: Engineer attend Intruder alarm,07/04/2014,381907,142.09,NET,Adt Fire & Security Plc,54086D
Gloucester City Council,23UE,Civica Contract Revs & Bens,RT250,Contracted Services,6970,Revenue & Bens serv 1/5/14 - 31/5/14,07/04/2014,382043,138572.7,NET,Civica Uk Ltd,10841X
Gloucester City Council,23UE,Client Revs & Bens Contract,RT240,Fees For Services Received,5350,arrest & detentiion council tax,07/04/2014,381888,49.5,NET,Assevarate Ltd,11749A
Gloucester City Council,23UE,Corporate Expenses,RC110,Fees For Services Received,5350,ADVERT 25/02/14,07/04/2014,380379,4000,NET,Local World Ltd,08556P
Gloucester City Council,23UE,Docks Complex - Services,RB100,General Repair/Maint Buildings,3000,7 yard skip,07/04/2014,382034,210,NET,Archer Recycling,11021G
Gloucester City Council,23UE,Docks Complex - Services,RB100,General Repair/Maint Buildings,3000,Collection and Dispoal,07/04/2014,382035,91.5,NET,Archer Recycling,11021G
Gloucester City Council,23UE,Gloucester Guildhall,LA100,Maintenance Of Equipment,5030,Guildhall: key tags,07/04/2014,381904,64.6,NET,Directa Uk Ltd,05387T
Gloucester City Council,23UE,Guildhall Bar And Caf�,LA210,Catering Provisions -Liquor,5111,Glos Gold 500ml bottle case,07/04/2014,381890,114,NET,Gloucester Brewery,13373F
Gloucester City Council,23UE,Guildhall Bar And Caf�,LA210,Catering Provisions -Liquor,5111,Guildhall: wine,07/04/2014,381891,23.88,NET,Cellar Supplies Cheltenham Ltd,01563L
Gloucester City Council,23UE,Guildhall Bar And Caf�,LA210,Catering Provisions -Liquor,5111,Guildhall: drinks,07/04/2014,381892,861.23,NET,Cellar Supplies Cheltenham Ltd,01563L
Gloucester City Council,23UE,REDACTED,REDACTED,REDACTED,REDACTED,REDACTED,07/04/2014,REDACTED,192.5,NET,REDACTED,REDACTED
Gloucester City Council,23UE,Homelessness Prevention,CH122,Fees For Services Received,5350,deposit,07/04/2014,382056,750,NET,H M Lettings,14827B
Gloucester City Council,23UE,Investment Property,RB500,General Repair/Maint Buildings,3000,Blackfriars priory: repair sink & toilet,07/04/2014,381881,106.65,NET,Rf Gardiner Limited,12299B
Gloucester City Council,23UE,Investment Property,RB500,General Repair/Maint Buildings,3000,Crem: repair water drain,07/04/2014,381880,1368.05,NET,Rf Gardiner Limited,12299B
Gloucester City Council,23UE,Registration Of Electors,RS400,Printing,5300,Elect Reg: Mailing,07/04/2014,380965,632,NET,Alpha Response Print & Mail Ltd,03029U
Gloucester City Council,23UE,Retail Market - Landlord,HM300,Cleaning / Domestic Equipment,5011,Markets: Cabinets,07/04/2014,379539,18.05,NET,Initial Washroom Solutions,06143R
Gloucester City Council,23UE,Retail Market - Landlord,HM300,Cleaning Materials,3600,cleaning materials,07/04/2014,379057,240.55,NET,Core Hygiene Ltd,03885P
Gloucester City Council,23UE,Retail Market - Landlord,HM300,Cleaning Materials,3600,cleaning materials,07/04/2014,380518,347.47,NET,Core Hygiene Ltd,03885P
Gloucester City Council,23UE,Retail Market - Landlord,HM300,Service Charges,3020,MARKET HALL,07/04/2014,380831,11905.5,NET,Workman Llp,11021M
Gloucester City Council,23UE,Retail Market - Landlord,HM300,Trade Refuse Collection,3630,food waste March,07/04/2014,382059,120,NET,B & S Pointon Ltd,06253G
Gloucester City Council,23UE,Tic Trading,LT110,Trade Refuse Sacks,5040,TIC: Trade Waste Service,07/04/2014,381883,1848.8,NET,Enterprise (Aol) Ltd,06695G
Gloucester City Council,23UE,Tourism Marketing,LT100,Other Minor Supplies Services,5590,TIC: Sanitary disposal,07/04/2014,381952,5.73,NET,Ocs Group Uk Limited T/A Cannon,06506A
Gloucester City Council,23UE,Business Transformation & Tech,RT700,Computer Hardware <5000,5420,BT&T: HDMI over CAT5E - for IT,08/04/2014,381884,36.15,NET,Cpc,52980M
Gloucester City Council,23UE,Business Transformation & Tech,RT700,Computer Hardware Maintenance,5426,BT&T: Computer vooucheers/infrastructure,08/04/2014,381886,3830,NET,Computerworld,11069J
Gloucester City Council,23UE,City Museum And Art Gallery,LM200,Events,5952,payment for talk at cm,08/04/2014,382121,200,NET,REDACTED,REDACTED
Gloucester City Council,23UE,City Museum And Art Gallery,LM200,Events,5952,payment for talk at cm,08/04/2014,382122,50,NET,REDACTED,REDACTED
Gloucester City Council,23UE,City Museum And Art Gallery,LM200,Events,5952,"Talk at city Museum, Gloucester",08/04/2014,382119,150,NET,REDACTED,REDACTED
Gloucester City Council,23UE,City Museum And Art Gallery,LM200,Events,5952,"Talk at city Museum, Gloucester",08/04/2014,382120,90,NET,REDACTED,REDACTED
Gloucester City Council,23UE,City Museum And Art Gallery,LM200,Publications For Sale,5064,Books,08/04/2014,381280,509.5,NET,The History Press Ltd,07144D
Gloucester City Council,23UE,Client Revs & Bens Contract,RT240,Bailiffs Fees,5368,VAT ONLY,08/04/2014,382097,0,NET,Bristow & Sutor,05450M
Gloucester City Council,23UE,Client Revs & Bens Contract,RT240,Bailiffs Fees,5368,VAT ONLY,08/04/2014,382098,192.5,NET,Bristow & Sutor,05450M
Gloucester City Council,23UE,Development Management,PT200,Advertising And Publicity,5702,Advert 20th March 14,08/04/2014,381311,204.51,NET,Local World Ltd,08556P
Gloucester City Council,23UE,Development Management,PT200,Contents Insurance,5700,Adverts march 27th,08/04/2014,381833,209.16,NET,Local World Ltd,08556P
Gloucester City Council,23UE,Disabled Facilities Grants,CY013,Disabled Facility Grants,0074,REDACTED,08/04/2014,381805,5275,CAP,Nks Contracts (Central) Ltd,56355E
Gloucester City Council,23UE,Docks Complex - Services,RB100,Cleaning Materials,3600,North warehouse: toilet rolls,08/04/2014,381014,29.88,NET,Cleanmy Ltd,06971S
Gloucester City Council,23UE,Economic Development,FP300,Other Minor Supplies Services,5590,REDACTED,08/04/2014,379856,740.29,NET,Anderson Recruitment Ltd,14646H
Gloucester City Council,23UE,Gf Amra/ Interest Payable,VR100,Int On Other Temp. Borrowing,7811,INTEREST 01/10/13-31/03/14,08/04/2014,382126,180.05,NET,John Ward Trust,49282W
Gloucester City Council,23UE,Gis Development Work,RY555,Contract Payments,0020,REDACTED,08/04/2014,381911,1250,CAP,Badenoch & Clark,01536P
Gloucester City Council,23UE,REDACTED,REDACTED,REDACTED,REDACTED,REDACTED,08/04/2014,REDACTED,100,NET,REDACTED,REDACTED
Gloucester City Council,23UE,Hmo Licences,HE520,Operational Equipment <5000,5012,Reimbursement,08/04/2014,381831,96.24,NET,Stroud District Council,42500D
Gloucester City Council,23UE,Homelessness,CH120,Rent In Advance,5516,loan deposit,08/04/2014,382123,582.68,NET,Rent It,08245L
Gloucester City Council,23UE,Homelessness,CH120,Rent In Advance,5516,rent in advance & deposit,08/04/2014,382124,484.6,NET,Michael Tuck Lettings,06755A
Gloucester City Council,23UE,Homelessness,CH120,Rent In Advance,5516,REDACTED,08/04/2014,381902,364.6,NET,Barton & Tredworth Developments Ltd,58165T
Gloucester City Council,23UE,Homelessness Prevention,CH122,Fees For Services Received,5350,loan deposit,08/04/2014,382123,600,NET,Rent It,08245L
Gloucester City Council,23UE,Homelessness Prevention,CH122,Fees For Services Received,5350,rent in advance & deposit,08/04/2014,382124,550,NET,Michael Tuck Lettings,06755A
Gloucester City Council,23UE,Homelessness Prevention,CH122,Fees For Services Received,5350,REDACTED,08/04/2014,381902,400,NET,Barton & Tredworth Developments Ltd,58165T
Gloucester City Council,23UE,Investment Property,RB500,Consultants Fees,5349,REDACTED,08/04/2014,378253,217.5,NET,Peter Goodhind Associates Ltd,18890E
Gloucester City Council,23UE,Licences,HE510,Other Minor Supplies Services,5590,Environmental: goods,08/04/2014,381151,12.3,NET,Mogo Uk,56615B
Gloucester City Council,23UE,Planning Policy,PT300,Basic Pay - Temporary Staff,2751,REDACTED,08/04/2014,381297,1841.69,NET,Randstad Cpe Ltd,13987L
Gloucester City Council,23UE,Pollution Control,HE300,Contents Insurance,5700,Adverts,08/04/2014,381807,162.68,NET,Local World Ltd,08556P
Gloucester City Council,23UE,Utilities,PT502,Electricity Supply,3110,BLACKFRIARS,08/04/2014,381070,25.94,NET,British Gas,59061X
Gloucester City Council,23UE,Utilities,PT502,Electricity Supply,3110,UTILITIES TO MAR 2014,08/04/2014,382193,222.94,NET,West Mercia Energy,11669Z
Gloucester City Council,23UE,Utilities,PT502,Electricity Supply,3110,UTILITIES TO MAR 2014,08/04/2014,381141,24469.62,NET,West Mercia Energy,11669Z
Gloucester City Council,23UE,Utilities,PT502,Gas Supply,3100,UTILITIES TO MAR 2014,08/04/2014,381140,12400.18,NET,West Mercia Energy,11669Z
Gloucester City Council,23UE,Business Transformation & Tech,RT700,Internet Service Provider Fees,5429,Phone Charges,09/04/2014,382171,3393.8,NET,Vodafone Ltd,11843H
Gloucester City Council,23UE,Cedar Upgrade 2011/12,RY250,Contract Payments,0020,BT&T: interface development work,09/04/2014,382247,12750,CAP,Advanced Business Solutions,06072N
Gloucester City Council,23UE,Cemeteries,HC300,Trade Refuse Tipping Fees,6297,Crem: Green waste,09/04/2014,382102,360,NET,Allstone Sand & Gravel Aggregates Ltd,00940M
Gloucester City Council,23UE,Cemeteries,HC300,Trade Refuse Tipping Fees,6297,crem: Inert waste.,09/04/2014,382101,360,NET,Allstone Sand & Gravel Aggregates Ltd,00940M
Gloucester City Council,23UE,Cemeteries,HC300,Trade Refuse Tipping Fees,6297,Hirer of dumper 28/2/14 to 28/3/2014,09/04/2014,382104,380,NET,Allstone Sand & Gravel Aggregates Ltd,00940M
Gloucester City Council,23UE,City Museum And Art Gallery,LM200,Publications For Sale,5064,City Museum - Dinosaur goods,09/04/2014,382250,237.18,NET,Ashwood & Company,51123D
Gloucester City Council,23UE,Civil Parking Enforcement,PT741,Contracted Services,6970,Parking,09/04/2014,382242,21940.41,NET,Apcoa Parking (Uk) Ltd,09954M
Gloucester City Council,23UE,Civil Parking Enforcement,PT741,On Street Parking Charges,6550,parking income Feb14,09/04/2014,380515,60258.53,NET,Gloucestershire County Council,18650D
Gloucester City Council,23UE,Cleansing Services Admin,HI100,Contracted Services,6970,COMMUNITY TOILETS SEPT13-MAR14,09/04/2014,382227,300,NET,The Warehouse Climbing Centre,11162S
Gloucester City Council,23UE,Contact Centre,RB300,Basic Pay -Admin /Prof Staff,2601,REDACTED,09/04/2014,381601,770,NET,Cps Anystaff Recruitment Ltd,13945D
Gloucester City Council,23UE,Crematorium,HC200,Cleaning Materials,3600,Chlorine tablets & bacterial spray,09/04/2014,382248,153.94,NET,Brisol Ltd,04416X
Gloucester City Council,23UE,Disabled Facilities Grants,CY013,Disabled Facility Grants,0074,REDACTED,09/04/2014,381436,5376.9,CAP,Nks Contracts (Central) Ltd,56355E
Gloucester City Council,23UE,Docks Complex - Castlemeads Cp,RB210,Contracted Services,6970,Parking,09/04/2014,382242,3928.08,NET,Apcoa Parking (Uk) Ltd,09954M
Gloucester City Council,23UE,Electrical Investigatory Works,RY142,Contract Payments,0020,Bearland Lodge: Legionella Assessment,09/04/2014,382253,350,CAP,Hydro-X Water Treatment Ltd,11765C
Gloucester City Council,23UE,Folk Museum,LM210,Exhibits And Collections,5038,Folk Museum window stickers,09/04/2014,382107,165,NET,Alpha Colour Printers Ltd,00945B
Gloucester City Council,23UE,Folk Museum,LM210,Publications For Sale,5064,City Museum - Dinosaur goods,09/04/2014,382250,18.96,NET,Ashwood & Company,51123D
Gloucester City Council,23UE,Forest Of Dean Cpe,PT744,Contracted Services,6970,Parking,09/04/2014,382242,3750.82,NET,Apcoa Parking (Uk) Ltd,09954M
Gloucester City Council,23UE,Forest Of Dean Off Street,PT742,Contracted Services,6970,Parking,09/04/2014,382242,626.12,NET,Apcoa Parking (Uk) Ltd,09954M
Gloucester City Council,23UE,Gf Amra/ Interest Payable,VR100,Int On Other Temp. Borrowing,7811,ICLA INTEREST 2013/14,09/04/2014,382233,36069.37,NET,Gloucester City Homes,05244T
Gloucester City Council,23UE,Gloucester Guildhall,LA100,Cleaning Materials,3600,Guildhall: various sanitary related good,09/04/2014,381954,121.68,NET,Ocs Group Uk Limited T/A Cannon,06506A
Gloucester City Council,23UE,REDACTED,REDACTED,REDACTED,REDACTED,REDACTED,09/04/2014,REDACTED,176.46,NET,REDACTED,REDACTED
Gloucester City Council,23UE,Hempsted Market/Car Boot,HM234,Maint Of Grounds - General,3030,Hempstead Meadow: Hedgecutting,09/04/2014,382105,140,NET,REDACTED,REDACTED
Gloucester City Council,23UE,Hempsted Market/Car Boot,HM234,Security Services Fees,5351,Security Staff,09/04/2014,382131,648,NET,Nsgl Ltd,12539E
Gloucester City Council,23UE,Hillfield Gardens Sensory Gard,LY146,Contract Payments,0020,"Hillfield gardens: cut grass, weed,water",09/04/2014,382249,1100,CAP,D R Howse Services,13597E
Gloucester City Council,23UE,Investment Property,RB500,Advertising And Publicity,5702,Design Development,09/04/2014,381292,250,NET,Litchfield Morris,14305P
Gloucester City Council,23UE,Investment Property,RB500,Rents,3200,GLENVILLE PDE TOILETS,09/04/2014,380630,15,NET,Martin Slowe Chartered Surveyors,51573R
Gloucester City Council,23UE,Kings Quarter,RY146,Contract Payments,0020,Kings Quarter Archaeological proj,09/04/2014,382103,500,CAP,Julian Stokes Management Ltd,09046K
Gloucester City Council,23UE,Legal Services,RS200,Basic Pay - Temporary Staff,2751,REDACTED,09/04/2014,381672,1547.05,NET,Venn Group Ltd,04339P
Gloucester City Council,23UE,Off Street Car Parks,PP110,Contracted Services,6970,Parking,09/04/2014,382242,13649.4,NET,Apcoa Parking (Uk) Ltd,09954M
Gloucester City Council,23UE,Off Street Car Parks,PP110,Rents,3200,EASTGATE SHOPPING CTR CAR PARK,09/04/2014,380852,65611.69,NET,Workman Llp,11021M
Gloucester City Council,23UE,Planning Policy,PT300,Basic Pay - Temporary Staff,2751,REDACTED,09/04/2014,380838,1678.53,NET,Randstad Cpe Ltd,13987L
Gloucester City Council,23UE,Public Conveniences (Client),HI400,Contracted Services,6970,community toilet  pay Sept13-March14,09/04/2014,382224,300,NET,Imperial Inn,13422U
Gloucester City Council,23UE,Public Conveniences (Client),HI400,Contracted Services,6970,Community toilet scheme Sept 13 to Mar14,09/04/2014,382198,300,NET,Fab And Faded,13265K
Gloucester City Council,23UE,Public Conveniences (Client),HI400,Contracted Services,6970,community toilet Sept 13 to March 14,09/04/2014,382225,300,NET,Hucclecote Community Association,23020B
Gloucester City Council,23UE,Public Conveniences (Client),HI400,Contracted Services,6970,community toilets - Sept 2013 - March 14,09/04/2014,382226,300,NET,The New Inn,13079J
Gloucester City Council,23UE,Public Conveniences (Client),HI400,Contracted Services,6970,Toilet Scheme 0913-0314,09/04/2014,382255,300,NET,Samuel Smith Old Brewery,11161U
Gloucester City Council,23UE,Public Conveniences (Client),HI400,Contracted Services,6970,Toilet Scheme 0913-0314,09/04/2014,382256,300,NET,Moon And Food Company Ltd,11166H
Gloucester City Council,23UE,Public Conveniences (Client),HI400,Contracted Services,6970,Toilet Scheme 0913-0314,09/04/2014,382257,300,NET,The Cross Keys,11165K
Gloucester City Council,23UE,Public Conveniences (Client),HI400,Contracted Services,6970,Toilet Scheme 0913-0314,09/04/2014,382258,300,NET,Eastgate Shopping Centre,11026K
Gloucester City Council,23UE,Public Conveniences (Client),HI400,Contracted Services,6970,Toilet Scheme 0913-0314,09/04/2014,382259,300,NET,The Westgate,10683R
Gloucester City Council,23UE,Public Conveniences (Client),HI400,Contracted Services,6970,Toilet Scheme 0913-0314,09/04/2014,382260,300,NET,Shell Gloucestershire,11160W
Gloucester City Council,23UE,The Fleece,RB530,General Repair/Maint Buildings,3000,FLEECE,09/04/2014,379093,2000,NET,Mcallister  Masonry,28900K
Gloucester City Council,23UE,Tourism Marketing,LT100,Exhibits And Collections,5038,Ceremony Tickets,09/04/2014,382181,630,NET,The Glasgows Group,03243P
Gloucester City Council,23UE,Ugly Structures,GY010,Contract Payments,0020,Specification Writing,09/04/2014,381661,200,CAP,Sally Strachey Historic Conservation Ltd,14202B
Gloucester City Council,23UE,Wake Room,HC501,Catering Provisions -Food,5110,arbor: food,09/04/2014,381909,118.42,NET,Janes Pantry,24500W
Gloucester City Council,23UE,Wake Room,HC501,Catering Provisions -Food,5110,Food,09/04/2014,382150,43.49,NET,Total Produce Gloucester,12645E
Gloucester City Council,23UE,Wake Room,HC501,Catering Provisions -Food,5110,Food,09/04/2014,382151,3,NET,Total Produce Gloucester,12645E
Gloucester City Council,23UE,Wake Room,HC501,Catering Provisions -Food,5110,Food,09/04/2014,382167,16.56,NET,3663,55585U
Gloucester City Council,23UE,Wake Room,HC501,Catering Provisions -Food,5110,Food,09/04/2014,382177,13.95,NET,Total Produce Gloucester,12645E
Gloucester City Council,23UE,Wake Room,HC501,Catering Provisions -Food,5110,Food,09/04/2014,382188,183.55,NET,3663,55585U
Gloucester City Council,23UE,Wake Room,HC501,Catering Provisions -Food,5110,Food,09/04/2014,382189,92.58,NET,3663,55585U
Gloucester City Council,23UE,Wake Room,HC501,Other Minor Supplies Services,5590,flowers,09/04/2014,382246,20.8,NET,Carols Fruit & Flower Basket,01274X
Gloucester City Council,23UE,Waterwells Park And Ride,PJ120,Contracted Services,6970,Parking,09/04/2014,382242,403.52,NET,Apcoa Parking (Uk) Ltd,09954M
Gloucester City Council,23UE,Website Rebuild,RY573,Consultants Fees,0030,New Daily Rate,09/04/2014,382141,1013.6,CAP,Patzone It Solutions Ltd,13059R
Gloucester City Council,23UE,Blackfriars Priory,RY207,Capital General Repairs & Main,0013,Blackfriars priory: CCTV,10/04/2014,382106,2990,CAP,Chubb Fire & Security Ltd,54582K
Gloucester City Council,23UE,Business Transformation & Tech,RT700,Computer Hardware <5000,5420,Replacements of Hardware,10/04/2014,382146,3105.75,NET,Net-Ctrl Limited,12283T
Gloucester City Council,23UE,Business Transformation & Tech,RT700,Computer Software <5000,5425,eToken 3000,10/04/2014,382147,3188.5,NET,Net-Ctrl Limited,12283T
Gloucester City Council,23UE,Contact Centre,RB300,Basic Pay -Admin /Prof Staff,2601,REDACTED,10/04/2014,382168,596.23,NET,One To One Recruitment,04752H
Gloucester City Council,23UE,Contact Centre,RB300,Basic Pay -Admin /Prof Staff,2601,REDACTED,10/04/2014,382187,1142.57,NET,One To One Recruitment,04752H
Gloucester City Council,23UE,Contact Centre,RB300,Basic Pay -Admin /Prof Staff,2601,REDACTED,10/04/2014,380978,1132.27,NET,One To One Recruitment,04752H
Gloucester City Council,23UE,Contact Centre,RB300,Basic Pay -Admin /Prof Staff,2601,Temporary Staff w/e 07/02/2014,10/04/2014,382180,762.41,NET,One To One Recruitment,04752H
Gloucester City Council,23UE,Contact Centre,RB300,Basic Pay -Admin /Prof Staff,2601,Temporary Staff w/e 31/01/2014,10/04/2014,382179,1619.82,NET,One To One Recruitment,04752H
Gloucester City Council,23UE,Docks Complex - Services,RB100,Operational Equipment <5000,5012,Annual Contract,10/04/2014,382128,120,NET,Nsgl Ltd,12539E
Gloucester City Council,23UE,Folk Museum,LM210,Exhibits And Collections,5038,DEPOSIT FOR TUDOR BED FOR MUSEUM,10/04/2014,382336,415,NET,REDACTED,REDACTED
Gloucester City Council,23UE,Gloucester Guildhall,LA100,Maintenance Of Equipment,5030,Shure Beta,10/04/2014,382267,583.34,NET,Lmc Audio Systems Ltd,10949Z
Gloucester City Council,23UE,REDACTED,REDACTED,REDACTED,REDACTED,REDACTED,10/04/2014,REDACTED,100,NET,REDACTED,REDACTED
Gloucester City Council,23UE,Homelessness,CH120,Fees For Services Received,5350,REDACTED,10/04/2014,382323,500,NET,Andrews Lettings,08513J
Gloucester City Council,23UE,Homelessness,CH120,Fees For Services Received,5350,REDACTED,10/04/2014,382325,500,NET,Ashgrove Property Services Ltd,10255T
Gloucester City Council,23UE,Homelessness,CH120,Rent In Advance,5516,REDACTED,10/04/2014,382323,484.6,NET,Andrews Lettings,08513J
Gloucester City Council,23UE,Homelessness,CH120,Rent In Advance,5516,REDACTED,10/04/2014,382325,169.64,NET,Ashgrove Property Services Ltd,10255T
Gloucester City Council,23UE,Homelessness,CH120,Rent In Advance,5516,Rent in Advance & Deposit,10/04/2014,382324,364.6,NET,Surelet,06858N
Gloucester City Council,23UE,Homelessness Prevention,CH122,Fees For Services Received,5350,Rent in Advance & Deposit,10/04/2014,382324,350,NET,Surelet,06858N
Gloucester City Council,23UE,Human Resources,EH100,Basic Pay -Admin /Prof Staff,2601,HR: Management of Apprentice scheme,10/04/2014,381887,3250,NET,Hr Consulting Ltd,12559Y
Gloucester City Council,23UE,Investment Property,RB500,Door Entry Systems Maint,3064,Repairs to Museum doors,10/04/2014,382137,170,NET,Pro Door Ltd,04760C
Gloucester City Council,23UE,Investment Property,RB500,Door Entry Systems Maint,3064,Repair to museum doors,10/04/2014,382138,290,NET,Pro Door Ltd,04760C
Gloucester City Council,23UE,Investment Property,RB500,Lift Maintenance,3051,Lift Inspection,10/04/2014,382132,76.58,NET,Pickerings Europe Ltd*,58816U
Gloucester City Council,23UE,Retail Market - Landlord,HM300,Operational Equipment <5000,5012,Rental of p75s Compactor,10/04/2014,382263,280.56,NET,System Rental Uk Ltd,03239E
Gloucester City Council,23UE,Tic Rovercard Sales,LT101,Sale Of Goods And Services,9230,TIC ticket sales Sportboat - Resid w/e,10/04/2014,382326,-0.83,NET,REDACTED,REDACTED
Gloucester City Council,23UE,Tic Theatre Ticket Sales,LT107,Materials For Sale,5080,TIC ticket sales Sportboat - Resid w/e,10/04/2014,382326,751,NET,REDACTED,REDACTED
Gloucester City Council,23UE,Tic Theatre Ticket Sales,LT107,Sale Of Goods And Services,9230,TIC ticket sales Sportboat - Resid w/e,10/04/2014,382326,-31.3,NET,REDACTED,REDACTED
Gloucester City Council,23UE,3rd Floor North Warehouse,RY210,Contract Payments,0020,N Warehouse 3rd floor refurbisment,11/04/2014,380497,5174,CAP,The Design Works Group Ltd,13519B
Gloucester City Council,23UE,Aspire Admin Charges,LC105,Other Minor Income,9900,BAILIFF PAYMENTS 28/03/14,11/04/2014,382382,80,NET,Aspire Sports & Cultural Trust,08135V
Gloucester City Council,23UE,Building Control,PT400,Fees For Services Received,5350,Old Civil Service Ground works,11/04/2014,380308,825,NET,King Builders (Gloucester) Ltd,25810S
Gloucester City Council,23UE,Business Transformation & Tech,RT700,Basic Pay - Temporary Staff,2751,BT&T - consultancy services - 20 h,11/04/2014,382114,600,NET,Ffox Software Ltd,10665T
Gloucester City Council,23UE,Countryside Unit,LP201,Publications,5060,Organisation subscript Conserv Land Mgt,11/04/2014,382112,16,NET,British Wildlife Publishing,04566A
Gloucester City Council,23UE,Crematorium,HC200,Repair/Maint Of Fixed Plant,3006,Crem: emissions monitoring,11/04/2014,382341,1490,NET,Environmental Scientifics Group Ltd,58118C
Gloucester City Council,23UE,Disabled Facilities Grants,CY013,Disabled Facility Grants,0074,REDACTED,11/04/2014,382388,1125,CAP,Tpg Disableaids,51324R
Gloucester City Council,23UE,Disabled Facilities Grants,CY013,Disabled Facility Grants,0074,REDACTED,11/04/2014,382387,5000,CAP,Glynn Mann Construction,07264S
Gloucester City Council,23UE,Disabled Facilities Grants,CY013,Disabled Facility Grants,0074,REDACTED,11/04/2014,382386,6028.55,CAP,Mears Home Improvement Ltd,00096G
Gloucester City Council,23UE,Docks Complex - Services,RB100,Emergency Lighting,3055,Herbert Wse: engineer fire alarm,11/04/2014,381226,130.5,NET,Adt Fire & Security Plc,54086D
Gloucester City Council,23UE,Docks Complex - Services,RB100,Recycling,3631,Shredding,11/04/2014,381974,149.6,NET,Printwaste Recycling,57114W
Gloucester City Council,23UE,Docks Complex - Services,RB100,Service Charges,3020,Docks service charge,11/04/2014,381287,13028.75,NET,Gloucester Quays Management Ltd,13497K
Gloucester City Council,23UE,Emergency Planning,RO100,Fees For Services Received,5350,Emergency Mgmt services APR13-MAR14,11/04/2014,382338,13972.67,NET,Gloucestershire County Council,18650D
Gloucester City Council,23UE,Gis Development Work,RY555,Contract Payments,0020,REDACTED,11/04/2014,382099,1250,CAP,Badenoch & Clark,01536P
Gloucester City Council,23UE,Group Mgr Planning & Economy,GR101,Basic Pay - Temporary Staff,2751,REDACTED,11/04/2014,381294,2475,NET,Randstad Cpe Ltd,13987L
Gloucester City Council,23UE,Group Mgr Planning & Economy,GR101,Basic Pay - Temporary Staff,2751,REDACTED,11/04/2014,381298,2475,NET,Randstad Cpe Ltd,13987L
Gloucester City Council,23UE,Group Mgr Planning & Economy,GR101,Basic Pay - Temporary Staff,2751,REDACTED,11/04/2014,382153,2475,NET,Randstad Cpe Ltd,13987L
Gloucester City Council,23UE,Group Mgr Planning & Economy,GR101,Basic Pay - Temporary Staff,2751,REDACTED,11/04/2014,382154,2475,NET,Randstad Cpe Ltd,13987L
Gloucester City Council,23UE,REDACTED,REDACTED,REDACTED,REDACTED,REDACTED,11/04/2014,REDACTED,460,NET,REDACTED,REDACTED
Gloucester City Council,23UE,Homelessness,CH120,Rent In Advance,5516,REDACTED,11/04/2014,382384,741.16,NET,REDACTED,REDACTED
Gloucester City Council,23UE,Homelessness,CH120,Rent In Advance,5516,REDACTED,11/04/2014,382385,484.6,NET,REDACTED,REDACTED
Gloucester City Council,23UE,Homelessness,CH120,Rent In Advance,5516,REDACTED,11/04/2014,382383,484.6,NET,Ack Residential Lettings,73749V
Gloucester City Council,23UE,Homelessness,CH120,Rent In Advance,5516,Rent in Advance & Deposit,11/04/2014,382335,484.6,NET,REDACTED,REDACTED
Gloucester City Council,23UE,Homelessness,CH120,Rent In Advance,5516,REDACTED,11/04/2014,382400,461.54,NET,Perry Bishop & Leaders,14668X
Gloucester City Council,23UE,Homelessness Prevention,CH122,Basic Pay - Temporary Staff,2751,REDACTED,11/04/2014,382115,270,NET,James Andrews Recruitment Solutions,13636W
Gloucester City Council,23UE,Homelessness Prevention,CH122,Fees For Services Received,5350,REDACTED,11/04/2014,382384,700,NET,REDACTED,REDACTED
Gloucester City Council,23UE,Homelessness Prevention,CH122,Fees For Services Received,5350,REDACTED,11/04/2014,382385,500,NET,REDACTED,REDACTED
Gloucester City Council,23UE,Homelessness Prevention,CH122,Fees For Services Received,5350,REDACTED,11/04/2014,382383,500,NET,Ack Residential Lettings,73749V
Gloucester City Council,23UE,Homelessness Prevention,CH122,Fees For Services Received,5350,Rent in Advance & Deposit,11/04/2014,382335,550,NET,REDACTED,REDACTED
Gloucester City Council,23UE,Homelessness Prevention,CH122,Fees For Services Received,5350,REDACTED,11/04/2014,382400,500,NET,Perry Bishop & Leaders,14668X
Gloucester City Council,23UE,Kings Quarter,RY146,Contract Payments,0020,Archaeeology: Trench & report golden Egg,11/04/2014,382048,3890,CAP,Cotswold Archaeology Ltd,09180E
Gloucester City Council,23UE,Planning Policy,PT300,Basic Pay - Temporary Staff,2751,REDACTED,11/04/2014,381671,1740.96,NET,Randstad Cpe Ltd,13987L
Gloucester City Council,23UE,Planning Policy,PT300,Basic Pay - Temporary Staff,2751,REDACTED,11/04/2014,381670,2108.89,NET,Randstad Cpe Ltd,13987L
Gloucester City Council,23UE,Planning Policy,PT300,Basic Pay - Temporary Staff,2751,REDACTED,11/04/2014,382155,163,NET,Randstad Cpe Ltd,13987L
Gloucester City Council,23UE,Planning Policy,PT300,Basic Pay - Temporary Staff,2751,REDACTED,11/04/2014,382157,147,NET,Randstad Cpe Ltd,13987L
Gloucester City Council,23UE,Planning Policy,PT300,Basic Pay - Temporary Staff,2751,REDACTED,11/04/2014,379814,894.83,NET,Randstad Cpe Ltd,13987L
Gloucester City Council,23UE,Shopmobility,PE200,Maintenance Of Equipment,5030,various repairs,11/04/2014,382036,427,NET,Disabled Care & Mobility,12675V
Gloucester City Council,23UE,Training Schemes,ET100,Vocational Training,2970,Training,11/04/2014,381479,640,NET,The Gold Standard,56141C
Gloucester City Council,23UE,16 Commercial Road,RB539,Electricity Supply,3110,REDACTED,14/04/2014,382428,11.83,NET,Swalec,58445H
Gloucester City Council,23UE,Bus Station,RB400,Water Supply,3400,ACCT 7890105225,14/04/2014,382429,164.47,NET,Severn Trent Water,01823H
Gloucester City Council,23UE,Corporate Reporting /Financing,RC504,Fees For Services Received,5350,Pension scheme actuarial invoice,14/04/2014,382241,1980,NET,Gloucestershire County Council,10614L
Gloucester City Council,23UE,Council Streetcare Team,HI101,Water Supply,3400,ACCT 7890105225,14/04/2014,382429,101.05,NET,Severn Trent Water,01823H
Gloucester City Council,23UE,Crematorium,HC200,Water Supply,3400,ACCT 7890105225,14/04/2014,382429,36.64,NET,Severn Trent Water,01823H
Gloucester City Council,23UE,Director Resources,MR102,Fees For Services Received,5350,Professional Services,14/04/2014,381987,737,NET,Wragge & Co Llp,06590J
Gloucester City Council,23UE,Director Resources,MR102,Fees For Services Received,5350,Professional Services,14/04/2014,381988,3616.5,NET,Wragge & Co Llp,06590J
Gloucester City Council,23UE,Director Resources,MR102,Vehicle Insurances,4300,CAR LEASE,14/04/2014,376139,4595.84,NET,Malvern Hills District Council,57298F
Gloucester City Council,23UE,Docks Complex - Services,RB100,Recycling,3631,Recycling,14/04/2014,381966,63.2,NET,Printwaste Recycling,57114W
Gloucester City Council,23UE,Docks Complex - Services,RB100,Water Supply,3400,ACCT 7890105225,14/04/2014,382429,1006.81,NET,Severn Trent Water,01823H
Gloucester City Council,23UE,Docks Complex - Telephones,RB120,Lease Lines,5411,Call charges up to 31/3/2014,14/04/2014,382430,3948.11,NET,Gamma Business Communications,10260A
Gloucester City Council,23UE,Docks Complex - Telephones,RB120,Mobile Phones,5409,Phone Charges,14/04/2014,382264,1961.47,NET,Everything Everywhere Ltd (T-Mobile),57543S
Gloucester City Council,23UE,Docks Complex - Telephones,RB120,Telephones And Fax,5410,Phone bill acccount VP75978270,14/04/2014,382432,2224.87,NET,BT Payment Services Ltd,56283E
Gloucester City Council,23UE,Financial Services,RT200,Consultants Fees,5349,REDACTED,14/04/2014,381665,3975,NET,Robert Half Ltd,03959K
Gloucester City Council,23UE,Financial Services,RT200,Consultants Fees,5349,REDACTED,14/04/2014,382134,2175,NET,Robert Half Ltd,03959K
Gloucester City Council,23UE,Gloucester Guildhall,LA100,Water Supply,3400,ACCT 7890105225,14/04/2014,382429,374.11,NET,Severn Trent Water,01823H
Gloucester City Council,23UE,Health Administration,HA200,Fees For Services Received,5350,annual subscription 1/4/2014 to 31/3/15,14/04/2014,382340,480,NET,Chartered Institute Of Environmental Health,24227R
Gloucester City Council,23UE,Investment Property,RB500,Lift Maintenance,3051,Lift Inspection,14/04/2014,382133,86.15,NET,Pickerings Europe Ltd*,58816U
Gloucester City Council,23UE,Investment Property,RB500,Water Supply,3400,ACCT 7890105225,14/04/2014,382429,293.02,NET,Severn Trent Water,01823H
Gloucester City Council,23UE,Off Street Car Parks,PP110,Water Supply,3400,ACCT 7890105225,14/04/2014,382429,2499.73,NET,Severn Trent Water,01823H
Gloucester City Council,23UE,Planning Policy,PT300,Basic Pay - Temporary Staff,2751,REDACTED,14/04/2014,380105,1651.07,NET,Randstad Cpe Ltd,13987L
Gloucester City Council,23UE,Planning Policy,PT300,Basic Pay - Temporary Staff,2751,REDACTED,14/04/2014,379836,790.78,NET,Randstad Cpe Ltd,13987L
Gloucester City Council,23UE,Safer Stronger Communities,FP841,Other Minor Supplies Services,5590,Safergloucester.co.uk website,14/04/2014,382395,995,NET,Icon.Net,52505Z
Gloucester City Council,23UE,St Michaels Tower,GY016,Contract Payments,0020,St Michael Ch tower: stone Repairs,14/04/2014,381480,675,CAP,Goddard Consulting Llp,10598G
Gloucester City Council,23UE,Tic Rovercard Sales,LT101,Materials For Sale,5080,Agents Return Form,14/04/2014,382140,7784,NET,Stagecoach Services Ltd*,56554W
Gloucester City Council,23UE,Tic Rovercard Sales,LT101,Sale Of Goods And Services,9230,Agents Return Form,14/04/2014,382140,-648.67,NET,Stagecoach Services Ltd*,56554W
Gloucester City Council,23UE,Accelerator 1 Econ Challenge F,FP302,Other Minor Supplies Services,5590,Enterprise Club,15/04/2014,382501,30.5,NET,University Of Gloucestershire,57991H
Gloucester City Council,23UE,Business Support,PT250,Fuel,4012,fuel,15/04/2014,382440,197.7,NET,Allstar Business Solutions Ltd (Arval),06594A
Gloucester City Council,23UE,Business Transformation & Tech,RT700,Basic Pay - Temporary Staff,2751,BT&T: 20 hours of consultancy.,15/04/2014,382476,600,NET,Ffox Software Ltd,10665T
Gloucester City Council,23UE,Business Transformation & Tech,RT700,Computer Software Maintenance,5427,Finance: Support and maintenance IT,15/04/2014,382050,20000,NET,Advanced Business Solutions,06072N
Gloucester City Council,23UE,Cems/Crems Admin,HC100,Security Services Fees,5351,cash deliveries for the 1/3/14 to31/3/14,15/04/2014,382439,13.73,NET,G4s Cash Solutions (Uk) Ltd,04290V
Gloucester City Council,23UE,Chief Executive,RE100,Fees For Services Received,5350,REDACTED,15/04/2014,382479,1000,NET,Ead Solicitors Llp,14658A
Gloucester City Council,23UE,City Museum Catering,LM202,Catering Provisions -Food,5110,Food,15/04/2014,382536,159.28,NET,Woodward Foodservice,10714F
Gloucester City Council,23UE,Civica Admin Charges,RT105,Fees For Services Received,5350,companies house subscription advance,15/04/2014,382394,4,NET,Companies House,58954E
Gloucester City Council,23UE,Client Revs & Bens Contract,RT240,Bailiffs Fees,5368,REDACTED,15/04/2014,382488,166,NET,Bristow & Sutor,05450M
Gloucester City Council,23UE,Client Revs & Bens Contract,RT240,Bailiffs Fees,5368,VAT only,15/04/2014,382489,0,NET,Bristow & Sutor,05450M
Gloucester City Council,23UE,Client Revs & Bens Contract,RT240,Fees For Services Received,5350,NAFN vatable & non-vatable charges,15/04/2014,382438,118.55,NET,Brighton & Hove City Council,00078J
Gloucester City Council,23UE,Client Revs & Bens Contract,RT240,Security Services Fees,5351,cash deliveries for the 1/3/14 to 31/3/14,15/04/2014,382439,3.43,NET,G4s Cash Solutions (Uk) Ltd,04290V
Gloucester City Council,23UE,Contact Centre,RB300,Basic Pay -Admin /Prof Staff,2601,REDACTED,15/04/2014,382178,446.6,NET,One To One Recruitment,04752H
Gloucester City Council,23UE,Contact Centre,RB300,Basic Pay -Admin /Prof Staff,2601,REDACTED,15/04/2014,382186,443.7,NET,One To One Recruitment,04752H
Gloucester City Council,23UE,Corporate Expenses,RC110,Subscriptions,5600,Subscription,15/04/2014,382495,10450,NET,Local Government Association,11683F
Gloucester City Council,23UE,Docks Complex - Services,RB100,Repair/Maint Of Fixed Plant,3006,North Wse replace fan belts,15/04/2014,380189,124.29,NET,Hewer Facilities Mgt Ltd,05232A
Gloucester City Council,23UE,Docks Complex - Telephones,RB120,Lease Lines,5411,CALLS,15/04/2014,382552,8500,NET,Virgin Media Business,01869B
Gloucester City Council,23UE,Docks Complex - Telephones,RB120,Telephones And Fax,5410,Call charges up to 31/3/2014,15/04/2014,382468,2367.47,NET,Gamma Business Communications,10260A
Gloucester City Council,23UE,General Drainage Works,PY241,Contract Payments,0020,Robinswood Hill Pk: Granite curb install,15/04/2014,382469,1796.57,CAP,Mr M G Horton T/A H&T Property Maintenance,09210X
Gloucester City Council,23UE,Gloucester Guildhall,LA100,Security Services Fees,5351,Door Staff,15/04/2014,382505,334.5,NET,Nsgl Ltd,12539E
Gloucester City Council,23UE,REDACTED,REDACTED,REDACTED,REDACTED,REDACTED,15/04/2014,REDACTED,600,NET,REDACTED,REDACTED
Gloucester City Council,23UE,Hackney Carriages,HL100,Fees For Services Received,5350,CRB checks,15/04/2014,382100,176,NET,Disclosure And Barring Service,00119W
Gloucester City Council,23UE,Homelessness,CH120,Fees For Services Received,5350,doctors: professional services,15/04/2014,382477,20.5,NET,Gloucester City Health Centre,02093U
Gloucester City Council,23UE,Homelessness,CH120,Fees For Services Received,5350,REDACTED,15/04/2014,382553,500,NET,All About Lettings,14435Z
Gloucester City Council,23UE,Homelessness,CH120,Rent In Advance,5516,REDACTED,15/04/2014,382553,484.6,NET,All About Lettings,14435Z
Gloucester City Council,23UE,Licences,HE510,Licensing Act,9303,refund of temp event note - wrong area,15/04/2014,382446,21,NET,REDACTED,REDACTED
Gloucester City Council,23UE,Nms Contract,HI102,Operational Materials,5070,Purple Bags,15/04/2014,381818,953,NET,Polystar Plastics Ltd,01120C
Gloucester City Council,23UE,Retail Market - Landlord,HM300,Trade Refuse Collection,3630,Skip charge,15/04/2014,382118,1980,NET,Barnwood Shopfitting Ltd,02590Y
Gloucester City Council,23UE,Website Rebuild,RY573,Consultants Fees,0030,"BT&T: 5 days,4/7/14 to 11/4/14 consult",15/04/2014,382480,1267,CAP,Patzone It Solutions Ltd,13059R
Gloucester City Council,23UE,Asset Management,RS300,Basic Pay - Temporary Staff,2751,REDACTED,16/04/2014,381893,1296.31,NET,Hays Specialist Recruitment Ltd,55516P
Gloucester City Council,23UE,Asset Management,RS300,Basic Pay - Temporary Staff,2751,REDACTED,16/04/2014,381905,228.75,NET,Hays Specialist Recruitment Ltd,55516P
Gloucester City Council,23UE,Asset Management,RS300,Basic Pay - Temporary Staff,2751,REDACTED,16/04/2014,382033,747.75,NET,Hays Specialist Recruitment Ltd,55516P
Gloucester City Council,23UE,Business Transformation & Tech,RT700,Computer Hardware Maintenance,5426,Lease Charge,16/04/2014,381803,275,NET,Stanford Marsh Ltd*,51139M
Gloucester City Council,23UE,Business Transformation & Tech,RT700,Computer Software Maintenance,5427,maintenance,16/04/2014,382481,11750,NET,Idox Group,07229U
Gloucester City Council,23UE,Business Transformation & Tech,RT700,Computer Software Maintenance,5427,Sundry Debtors Sys - annual maintenance,16/04/2014,382475,2860,NET,Ash Information Systems Ltd,54890V
Gloucester City Council,23UE,Cemeteries,HC300,Maint Of Grounds - General,3030,MACHINE MART LTD*,16/04/2014,382622,61.17,NET,Machine Mart Ltd*,55207G
Gloucester City Council,23UE,Civica Contract Revs & Bens,RT250,Contracted Services,6970,Pension excess reclaim for March 2014,16/04/2014,382444,10188.78,NET,Civica Uk Ltd,10841X
Gloucester City Council,23UE,Client Revs & Bens Contract,RT240,Court Fees,5358,Warrants Gloucester Magistrates 25/3/14,16/04/2014,382623,225,NET,HMCTS,03444B
Gloucester City Council,23UE,Community Safety Projects,FP500,Basic Pay -Admin /Prof Staff,2601,REDACTED,16/04/2014,382525,534.65,NET,Travail Employment Ltd,49371W
Gloucester City Council,23UE,Contact Centre,RB300,Basic Pay -Admin /Prof Staff,2601,Temporary Staff w/e 28/03/2014,16/04/2014,381981,1622.72,NET,One To One Recruitment,04752H
Gloucester City Council,23UE,Council Streetcare Team,HI101,Window Cleaning,3610,Clean Windows,16/04/2014,382174,130,NET,Poles Apart Window Cleaning,11636R
Gloucester City Council,23UE,Countryside Unit,LP201,Maint Of Grounds - General,3030,Batteries,16/04/2014,381978,234.36,NET,Screwfix Direct*,54672H
Gloucester City Council,23UE,Countryside Unit,LP201,Vet Fees,5842,Clinical Visit,16/04/2014,382496,109.7,NET,Wood Veterinary Group,48892V
Gloucester City Council,23UE,Depot,PY109,Contract Payments,0020,Interim Eastern Avenue Depot Bin Barrier,16/04/2014,382483,1300,CAP,Anderson Civil Engineering Uk Ltd,09083D
Gloucester City Council,23UE,Docks Complex - Services,RB100,Maint Of Grounds - General,3030,Assist Plumber,16/04/2014,381963,66,NET,Snape Construction Ltd,40958T
Gloucester City Council,23UE,Emergency Out Of Hours Calls,RB301,Fees For Services Received,5350,Monthly Fee,16/04/2014,381662,226.69,NET,Office Response,09439K
Gloucester City Council,23UE,Food Safety,HE100,Fees For Services Received,5350,Laundry and Ironing,16/04/2014,382599,25,NET,Iron Maidens,02180Y
Gloucester City Council,23UE,Forest Of Dean Cpe,PT744,Contracted Services,6970,Penalty Charge Notices,16/04/2014,381989,73.15,NET,Patrol,09431C
Gloucester City Council,23UE,Hackney Carriages,HL100,Fees For Services Received,5350,DVLA Electronic check,16/04/2014,382592,21.75,NET,Intelligent Data Systems (Uk) Ltd,11067G
Gloucester City Council,23UE,Hempsted Market/Car Boot,HM234,Security Services Fees,5351,Security Staff,16/04/2014,382529,1252.8,NET,Nsgl Ltd,12539E
Gloucester City Council,23UE,Homelessness Prevention,CH122,Fees For Services Received,5350,REDACTED,16/04/2014,382624,550,NET,REDACTED,REDACTED
Gloucester City Council,23UE,Homelessness Prevention,CH122,Fees For Services Received,5350,REDACTED,16/04/2014,382608,960.76,NET,REDACTED,REDACTED
Gloucester City Council,23UE,Housing Works In Default,HD500,Clearance And Cleansing Fees,5384,REDACTED,16/04/2014,382539,80,NET,Rj Contracting (Environmental) Ltd,07429H
Gloucester City Council,23UE,Human Resources,EH100,Employee Related Advertising,2920,Advertising subscription (1/4/14Renewal),16/04/2014,382473,5250,NET,Jgp Resourcing Ltd (Jobs Go Public),12491H
Gloucester City Council,23UE,Investment Property,RB500,Fire Alarm Maintenance,3053,service charges Oct-Dec13,16/04/2014,376639,2581.96,NET,Adt Fire & Security Plc,54086D
Gloucester City Council,23UE,Investment Property,RB500,General Repair/Maint Buildings,3000,Assist Plumber,16/04/2014,381963,70,NET,Snape Construction Ltd,40958T
Gloucester City Council,23UE,Investment Property,RB500,Grounds Lighting,3037,OCT LABOUR,16/04/2014,376978,354.49,NET,Scs Installations Ltd,10383G
Gloucester City Council,23UE,Investment Property,RB500,Maint Of Grounds - General,3030,Hempsted,16/04/2014,381986,78.62,NET,Lower Severn Drainage Board,04918R
Gloucester City Council,23UE,Kings Quarter,RY146,Legal/Survey Fees -Land,0002,The Golden Egg,16/04/2014,382537,33633.8,CAP,Wye Valley Demolition Ltd,07242C
Gloucester City Council,23UE,Land Searches,RO300,Subscriptions,5600,Membership Subscriptions 14/15,16/04/2014,382618,115,NET,Local Land Charges Institute,04897X
Gloucester City Council,23UE,Legal Services,RS200,Basic Pay -Admin /Prof Staff,2601,REDACTED,16/04/2014,382619,429.12,NET,Sellick Partnership Group Ltd,11057C
Gloucester City Council,23UE,Legal Services,RS200,Basic Pay -Admin /Prof Staff,2601,REDACTED,16/04/2014,382616,523.26,NET,Sellick Partnership Group Ltd,11057C
Gloucester City Council,23UE,Legal Services,RS200,Basic Pay - Temporary Staff,2751,REDACTED,16/04/2014,382149,197.55,NET,Premiere Employment Ltd,55468Z
Gloucester City Council,23UE,Legal Services,RS200,Basic Pay - Temporary Staff,2751,REDACTED,16/04/2014,382172,1405.34,NET,Venn Group Ltd,04339P
Gloucester City Council,23UE,Legal Services,RS200,Publications,5060,Online Renewal,16/04/2014,382390,21115,NET,Lexis Nexis Ltd,01712U
Gloucester City Council,23UE,Licences,HE510,Licensing Act,9303,refund for temporary event notice,16/04/2014,382625,21,NET,REDACTED,REDACTED
Gloucester City Council,23UE,Off Street Car Parks,PP110,General Repair/Maint Buildings,3000,PARKEON LTD,16/04/2014,379374,28.5,NET,Parkeon Ltd,03238G
Gloucester City Council,23UE,Photocopying,RS130,Photocopying,5320,Kimberley Wse: service call out,16/04/2014,382240,114,NET,Danwood Group Limited,09555G
Gloucester City Council,23UE,Publications,RC450,Basic Pay -Admin /Prof Staff,2601,design services during 2013/14,16/04/2014,382433,29989,NET,Gloucestershire County Council,18650D
Gloucester City Council,23UE,Retail Market - Landlord,HM300,Lift Maintenance,3051,Eastgate market lifts - work on,16/04/2014,379283,3896.86,NET,Pickerings Europe Ltd*,58816U
Gloucester City Council,23UE,Retail Market - Landlord,HM300,Subscriptions,5600,Subscription fee 2014/15,16/04/2014,381808,636,NET,Nabma,47998L
Gloucester City Council,23UE,Shopmobility,PE200,Cleaning Materials,3600,Shopmobility: sanitary/medical waste,16/04/2014,381953,7.11,NET,Ocs Group Uk Limited T/A Cannon,06506A
Gloucester City Council,23UE,Superbreak,LT104,Materials For Sale,5080,Aloft Lodon Excel,16/04/2014,382176,87.52,NET,Superbreak Mini Holidays,00712D
Gloucester City Council,23UE,Superbreak,LT104,Materials For Sale,5080,Riviera Hotel,16/04/2014,382268,460,NET,Superbreak Mini Holidays,00712D
Gloucester City Council,23UE,Superbreak,LT104,Sale Of Goods And Services,9230,Aloft Lodon Excel,16/04/2014,382176,-7.29,NET,Superbreak Mini Holidays,00712D
Gloucester City Council,23UE,Superbreak,LT104,Sale Of Goods And Services,9230,Riviera Hotel,16/04/2014,382268,-38.32,NET,Superbreak Mini Holidays,00712D
Gloucester City Council,23UE,Taxi Marshalling Scheme,HL101,Taxi Marshals,5387,11 Taxi Marshalls,16/04/2014,382595,137.5,NET,Cuff Security Services Ltd,12073G
Gloucester City Council,23UE,Taxi Marshalling Scheme,HL101,Taxi Marshals,5387,15 taxi Marshalls,16/04/2014,382596,187.5,NET,Cuff Security Services Ltd,12073G
Gloucester City Council,23UE,Taxi Marshalling Scheme,HL101,Taxi Marshals,5387,15 x Taxi Marshalls,16/04/2014,382594,187.5,NET,Cuff Security Services Ltd,12073G
Gloucester City Council,23UE,Taxi Marshalling Scheme,HL101,Taxi Marshals,5387,Taxi marshalls (15),16/04/2014,382593,187.5,NET,Cuff Security Services Ltd,12073G
Gloucester City Council,23UE,Tic Stamp Sales,LT102,Postages,5400,Stamps,16/04/2014,382626,1311.6,NET,Royal Mail Retail,59246G
Gloucester City Council,23UE,Utilities,PT502,Electricity Supply,3110,UTILITIES TO MAR 2014,16/04/2014,382583,29916.38,NET,West Mercia Energy,11669Z
Gloucester City Council,23UE,Blackfriars,LA609,Maintenance Of Equipment,5030,BT&T: HDMI and handling charge,17/04/2014,382237,36.15,NET,Cpc,52980M
Gloucester City Council,23UE,Business Support,PT250,Publications,5060,Citizen newspaper & delivery,17/04/2014,382612,145.2,NET,Keelings Newsagents,55281U
Gloucester City Council,23UE,Business Transformation & Tech,RT700,Computer Hardware <5000,5420,2 x Fujitsu A3 scanners & delivery,17/04/2014,382674,3434,NET,Idox Group,07229U
Gloucester City Council,23UE,Cctv Revenue Budget,FP501,Security Equipment Serv/Repair,3038,Charges Jan- March 14,17/04/2014,382530,1119.48,NET,Npower Ltd,02663W
Gloucester City Council,23UE,Cemeteries,HC300,Fuel,4012,Crem: Gasoil (Class A2) - Red Diesel,17/04/2014,381597,943.5,NET,Cpl Petroleum,55192U
Gloucester City Council,23UE,Countryside Unit,LP201,Maint Of Grounds - General,3030,Countryside: Brass padlock,17/04/2014,382673,66.8,NET,Gloucester Locksmiths,18160C
Gloucester City Council,23UE,Countryside Unit,LP201,Vehicle Licences,4015,Years vehicle tax,17/04/2014,382709,280,NET,Post Office Ltd,06173F
Gloucester City Council,23UE,Docks Complex - Catering Servs,RB110,Catering Provisions -Food,5110,Herbert Wse: Jane's Pantry food,17/04/2014,382234,53.35,NET,Janes Pantry,24500W
Gloucester City Council,23UE,Docks Complex - Services,RB100,Service Charges,3020,SAN BINS,17/04/2014,381069,48.75,NET,Wessex Products (Leasing) Ltd,03684C
Gloucester City Council,23UE,Docks Complex - Telephones,RB120,Telephones And Fax,5410,Charges,17/04/2014,382270,30,NET,Virgin Media Payments Ltd,09376J
Gloucester City Council,23UE,Docks Complex - Telephones,RB120,Telephones And Fax,5410,Charges,17/04/2014,382271,39,NET,Virgin Media Payments Ltd,09376J
Gloucester City Council,23UE,Docks Complex - Telephones,RB120,Telephones And Fax,5410,Charges,17/04/2014,382272,30,NET,Virgin Media Payments Ltd,09376J
Gloucester City Council,23UE,Events,LT410,Events,5952,sponsorship for Crucible 2 Exhib 2014,17/04/2014,382710,25000,NET,Chapter Of Gloucester Cathedral,53250RV
Gloucester City Council,23UE,Financial Services,RT200,Consultants Fees,5349,REDACTED,17/04/2014,382506,2175,NET,Robert Half Ltd,03959K
Gloucester City Council,23UE,General Works Fund,RY203,Contract Payments,0020,city museum: supply/intall Biopak Unit,17/04/2014,381879,945.87,CAP,Rf Gardiner Limited,12299B
Gloucester City Council,23UE,Gloucester Guildhall,LA100,Maintenance Of Equipment,5030,Stage Monitors,17/04/2014,382703,1200,NET,Unique Sound Systems,59571S
Gloucester City Council,23UE,REDACTED,REDACTED,REDACTED,REDACTED,REDACTED,17/04/2014,REDACTED,461.55,NET,REDACTED,REDACTED
Gloucester City Council,23UE,REDACTED,REDACTED,REDACTED,REDACTED,REDACTED,17/04/2014,REDACTED,72,NET,REDACTED,REDACTED
Gloucester City Council,23UE,REDACTED,REDACTED,REDACTED,REDACTED,REDACTED,17/04/2014,REDACTED,72,NET,REDACTED,REDACTED
Gloucester City Council,23UE,REDACTED,REDACTED,REDACTED,REDACTED,REDACTED,17/04/2014,REDACTED,72,NET,REDACTED,REDACTED
Gloucester City Council,23UE,REDACTED,REDACTED,REDACTED,REDACTED,REDACTED,17/04/2014,REDACTED,72,NET,REDACTED,REDACTED
Gloucester City Council,23UE,REDACTED,REDACTED,REDACTED,REDACTED,REDACTED,17/04/2014,REDACTED,110,NET,REDACTED,REDACTED
Gloucester City Council,23UE,REDACTED,REDACTED,REDACTED,REDACTED,REDACTED,17/04/2014,REDACTED,660,NET,REDACTED,REDACTED
Gloucester City Council,23UE,REDACTED,REDACTED,REDACTED,REDACTED,REDACTED,17/04/2014,REDACTED,1241.45,NET,REDACTED,REDACTED
Gloucester City Council,23UE,REDACTED,REDACTED,REDACTED,REDACTED,REDACTED,17/04/2014,REDACTED,100,NET,REDACTED,REDACTED
Gloucester City Council,23UE,Herbert Reception Upgrade,RY201,Contract Payments,0020,Herbert Reception: electrical point isol,17/04/2014,382611,78.84,CAP,Rf Gardiner Limited,12299B
Gloucester City Council,23UE,Homelessness,CH120,Fees For Services Received,5350,REDACTED,17/04/2014,382753,364.6,NET,REDACTED,REDACTED
Gloucester City Council,23UE,Investment Property,RB500,Repair/Maint Of Fixed Plant,3006,CCL management package for Glos Leisure,17/04/2014,382672,750,NET,Ccl Consulting Ltd,06750L
Gloucester City Council,23UE,Legal Services,RS200,Basic Pay - Temporary Staff,2751,REDACTED,17/04/2014,382510,395.1,NET,Premiere Employment Ltd,55468Z
Gloucester City Council,23UE,Legal Services,RS200,Basic Pay - Temporary Staff,2751,REDACTED,17/04/2014,382504,464.15,NET,Venn Group Ltd,04339P
Gloucester City Council,23UE,Printing,RP103,Fees For Services Received,5350,Print room sales March 2014 - VAT &noVAT,17/04/2014,382675,820.2,NET,Alpha Colour Printers Ltd,00945B
Gloucester City Council,23UE,Retail Market - Landlord,HM300,Fees For Services Received,5350,Royalty Charges,17/04/2014,381964,242.76,NET,Prs For Music,12222P
Gloucester City Council,23UE,Stationery Services,RS150,Stationery,5302,Stationary,17/04/2014,382685,40.09,NET,Lyreco Uk Ltd,11746G
Gloucester City Council,23UE,Utilities,PT502,Electricity Supply,3110,UTILITIES TO MAR 2014,17/04/2014,382682,3096.43,NET,West Mercia Energy,11669Z
Gloucester City Council,23UE,Utilities,PT502,Gas Supply,3100,UTILITIES TO MAR 2014,17/04/2014,382682,13687.32,NET,West Mercia Energy,11669Z
Gloucester City Council,23UE,Vending Machine,RB111,Hire Of Equipment,5020,RENTAL MAY-AUG 2014,17/04/2014,381342,162.57,NET,Siemens Financial Services Ltd,08349H
Gloucester City Council,23UE,Aspire Admin Charges,LC105,Other Minor Income,9900,BAILIFF PAYMENTS 04/04/14,22/04/2014,382747,137,NET,Aspire Sports & Cultural Trust,08135V
Gloucester City Council,23UE,Aspire Admin Charges,LC105,Security Services Fees,5351,various locations cash services,22/04/2014,382610,264.51,NET,G4s Cash Solutions (Uk) Ltd,04290V
Gloucester City Council,23UE,Building Control,PT400,Subscriptions,5600,Book: Building control law,22/04/2014,379898,305,NET,Lexis Nexis Ltd,01712U
Gloucester City Council,23UE,Cemeteries,HC300,Clothing,5200,Safety Trainers,22/04/2014,382502,49.5,NET,Safpro Industrial Supply Co,39190W
Gloucester City Council,23UE,Cems/Crems Admin,HC100,Security Services Fees,5351,various locations cash services,22/04/2014,382610,100.49,NET,G4s Cash Solutions (Uk) Ltd,04290V
Gloucester City Council,23UE,City Museum And Art Gallery,LM200,Security Services Fees,5351,various locations cash services,22/04/2014,382610,88.17,NET,G4s Cash Solutions (Uk) Ltd,04290V
Gloucester City Council,23UE,Client Revs & Bens Contract,RT240,Security Services Fees,5351,various locations cash services,22/04/2014,382610,263.39,NET,G4s Cash Solutions (Uk) Ltd,04290V
Gloucester City Council,23UE,Community Safety Projects,FP500,Basic Pay -Admin /Prof Staff,2601,REDACTED,22/04/2014,382621,543.03,NET,Travail Employment Ltd,49371W
Gloucester City Council,23UE,Crematorium,HC200,Fees For Services Received,5350,Crematorium - Doctors fees March 2014,22/04/2014,382745,463.6,NET,REDACTED,REDACTED
Gloucester City Council,23UE,Crematorium,HC200,Fees For Services Received,5350,CREM FEES MARCH 2014,22/04/2014,382768,1046.08,NET,REDACTED,REDACTED
Gloucester City Council,23UE,Crematorium,HC200,Fees For Services Received,5350,Doctors Fees,22/04/2014,382746,1080.4,NET,REDACTED,REDACTED
Gloucester City Council,23UE,Docks Complex - Services,RB100,Service Charges,3020,TRADE WASTE APR-JUN 2014,22/04/2014,379848,13839.8,NET,Enterprise (Aol) Ltd,06695G
Gloucester City Council,23UE,Docks Complex - Telephones,RB120,Lease Lines,5411,The Docks Rental BT&T virgin media busi,22/04/2014,382397,8500,NET,Virgin Media Payments Ltd,09376J
Gloucester City Council,23UE,Events,LT410,Events,5952,Sponsorship for Crucible 2 Exhib 2014,22/04/2014,382478,25000,NET,The Chapter Of Gloucester Cathedral,12205P
Gloucester City Council,23UE,Financial Services,RT200,Fees For Services Received,5350,DEC13 payroll charges,22/04/2014,377283,3313.03,NET,Gloucestershire County Council,18650D
Gloucester City Council,23UE,Financial Services,RT200,Fees For Services Received,5350,Payroll FEB14,22/04/2014,382244,3374.43,NET,Gloucestershire County Council,18650D
Gloucester City Council,23UE,Financial Services,RT200,Fees For Services Received,5350,Payroll & monthly charges MAR14,22/04/2014,382243,3343.73,NET,Gloucestershire County Council,18650D
Gloucester City Council,23UE,Folk Museum,LM210,Security Services Fees,5351,various locations cash services,22/04/2014,382610,88.17,NET,G4s Cash Solutions (Uk) Ltd,04290V
Gloucester City Council,23UE,Food Safety,HE100,Other Minor Supplies Services,5590,Lab coats,22/04/2014,382772,154.36,NET,Food Safety Direct Ltd,07478U
Gloucester City Council,23UE,Food Safety,HE100,Printing,5300,various print jobs,22/04/2014,381745,805,NET,Alpha Colour Printers Ltd,00945B
Gloucester City Council,23UE,General Works Fund,RY203,Capital Maint Of Grounds,0023,Kemble Rd Garage Site - clearance works,22/04/2014,382780,3869,CAP,Anderson Civil Engineering Uk Ltd,09083D
Gloucester City Council,23UE,Gloucester Guildhall,LA100,Security Services Fees,5351,various locations cash services,22/04/2014,382610,88.17,NET,G4s Cash Solutions (Uk) Ltd,04290V
Gloucester City Council,23UE,Guildhall Bar And Caf�,LA210,Hire Of Equipment,5020,Service Call,22/04/2014,382528,56,NET,Mjs Catering Equipment,57425Z
Gloucester City Council,23UE,Guildhall Bar And Caf�,LA210,Other Catering Provisions,5112,Guildhall: BOC gases,22/04/2014,382045,46.92,NET,Boc Ltd,59172L
Gloucester City Council,23UE,Hmo Licences,HE520,Operational Equipment <5000,5012,Reimbursement,22/04/2014,382494,80.2,NET,Stroud District Council,42500D
Gloucester City Council,23UE,Printing,RP103,Fees For Services Received,5350,various print jobs,22/04/2014,381745,749,NET,Alpha Colour Printers Ltd,00945B
Gloucester City Council,23UE,Rugby World Cup,LT450,Advertising And Publicity,5702,Window Graphics,22/04/2014,382493,4444.79,NET,2020 Signs Ltd,58939A
Gloucester City Council,23UE,Tourism Marketing,LT100,Security Services Fees,5351,various locations cash services,22/04/2014,382610,88.17,NET,G4s Cash Solutions (Uk) Ltd,04290V
Gloucester City Council,23UE,Homelessness,CH120,Rent In Advance,5516,REDACTED,22/04/2014,382401,364.6,NET,REDACTED,REDACTED
Gloucester City Council,23UE,Asbru - Other Funders,FP846,Other Minor Supplies Services,5590,REDACTED,23/04/2014,382819,545.49,NET,Travail Employment Ltd,49371W
Gloucester City Council,23UE,Business Transformation & Tech,RT700,Basic Pay - Temporary Staff,2751,BT&T 20 hours consulting,23/04/2014,382769,600,NET,Ffox Software Ltd,10665T
Gloucester City Council,23UE,Business Transformation & Tech,RT700,Computer Consumables,5422,Cable,23/04/2014,382697,63.37,NET,Rocom,56066R
Gloucester City Council,23UE,Cemeteries,HC300,Maint Of Grounds - General,3030,Stakes,23/04/2014,382887,85,NET,Millington & Ramstedt Ltd,29815S
Gloucester City Council,23UE,Cemeteries,HC300,Routine R And M - Vehicles,4011,Crem: various goods & labour,23/04/2014,382835,262.15,NET,Garden Machinery Gloucester,55641K
Gloucester City Council,23UE,City Museum Art Contributions,LM201,Exhibits And Collections,5038,Drawing of Gloucester Art & Museum,23/04/2014,382492,105.75,NET,Simon Chorley Art & Antiques Ltd,48140D
Gloucester City Council,23UE,Client Revs & Bens Contract,RT240,Computer Hardware <5000,5420,Bottom Cord,23/04/2014,382503,1186.43,NET,Rocom,56066R
Gloucester City Council,23UE,Client Revs & Bens Contract,RT240,Postages,5400,interpreting: 1.5 hours.,23/04/2014,382676,45,NET,REDACTED,REDACTED
Gloucester City Council,23UE,Council Streetcare Team,HI101,Operational Equipment <5000,5012,Paint,23/04/2014,382868,31.8,NET,Safety Shop,06777P
Gloucester City Council,23UE,Cpo 134 Reservoir Rd,RY216,Contract Payments,0020,Advertisements,23/04/2014,382695,278.88,CAP,Local World Ltd,08556P
Gloucester City Council,23UE,Crematorium,HC200,Memorial Plaques,5053,Crem: Bronze Cast Plaque,23/04/2014,382834,48,NET,Arkell & Hurcombe,59812T
Gloucester City Council,23UE,Development Management,PT200,Advertising And Publicity,5702,Advertisements,23/04/2014,382694,185.92,NET,Local World Ltd,08556P
Gloucester City Council,23UE,Disabled Facilities Grants,CY013,Disabled Facility Grants,0074,REDACTED,23/04/2014,382833,5175,CAP,Beard & Tandy,03160V
Gloucester City Council,23UE,Docks Complex - Catering Servs,RB110,Catering Provisions -Food,5110,Food,23/04/2014,382822,295.23,NET,3663,55585U
Gloucester City Council,23UE,Docks Complex - Catering Servs,RB110,Catering Provisions -Food,5110,Food,23/04/2014,382823,756.03,NET,3663,55585U
Gloucester City Council,23UE,Docks Complex - Catering Servs,RB110,Catering Provisions -Food,5110,Food,23/04/2014,382824,518.14,NET,3663,55585U
Gloucester City Council,23UE,Docks Complex - Services,RB100,Cleaning Materials,3600,The docks: various hygiene items,23/04/2014,382060,89.09,NET,Core Hygiene Ltd,03885P
Gloucester City Council,23UE,Docks Complex - Services,RB100,Cleaning Materials,3600,various hygiene,23/04/2014,382486,86.92,NET,Core Hygiene Ltd,03885P
Gloucester City Council,23UE,Economic Development,FP300,Other Minor Supplies Services,5590,Membership,23/04/2014,382806,99,NET,Newsco Insider Ltd,11688V
Gloucester City Council,23UE,Economic Development,FP300,Other Minor Supplies Services,5590,USB Sticks,23/04/2014,382866,358,NET,Smart Communications (Sw) Ltd,12287J
Gloucester City Council,23UE,Flooding And Drainage,HE306,Maint Of Grounds - General,3030,Clearance of Debris,23/04/2014,381559,450,NET,Rdb Safety Boat Ltd,13507J
Gloucester City Council,23UE,Guildhall Bar And Caf�,LA210,Catering Provisions -Food,5110,Guildhall: food,23/04/2014,382849,22.4,NET,Janes Pantry,24500W
Gloucester City Council,23UE,REDACTED,REDACTED,REDACTED,REDACTED,REDACTED,23/04/2014,REDACTED,100,NET,REDACTED,REDACTED
Gloucester City Council,23UE,REDACTED,REDACTED,REDACTED,REDACTED,REDACTED,23/04/2014,REDACTED,100,NET,REDACTED,REDACTED
Gloucester City Council,23UE,REDACTED,REDACTED,REDACTED,REDACTED,REDACTED,23/04/2014,REDACTED,90,NET,REDACTED,REDACTED
Gloucester City Council,23UE,Homelessness,CH120,Fees For Services Received,5350,Medical Questionnaire,23/04/2014,382863,20.5,NET,Dr P Lush & Partners,05680S
Gloucester City Council,23UE,Homelessness,CH120,Fees For Services Received,5350,Medical Report,23/04/2014,382518,20.5,NET,Rosebank Health,03041E
Gloucester City Council,23UE,Housing Works In Default,HD500,Clearance And Cleansing Fees,5384,Specification,23/04/2014,382265,449.2,NET,Reach Gloucestershire Cic,12542S
Gloucester City Council,23UE,Legal Services,RS200,Basic Pay - Temporary Staff,2751,REDACTED,23/04/2014,382813,1423.91,NET,Venn Group Ltd,04339P
Gloucester City Council,23UE,Legal Services,RS200,Publications,5060,Planning cont their enforce,23/04/2014,382808,49,NET,Thomson Reuters,43110M
Gloucester City Council,23UE,Photocopying,RS130,Photocopying,5320,Managed print service,23/04/2014,382776,33967.8,NET,Danwood Group Limited,09555G
Gloucester City Council,23UE,Superbreak,LT104,Materials For Sale,5080,County Hotel 31/05/2014,23/04/2014,382807,66,NET,Superbreak Mini Holidays,00712D
Gloucester City Council,23UE,Superbreak,LT104,Sale Of Goods And Services,9230,County Hotel 31/05/2014,23/04/2014,382807,-5.5,NET,Superbreak Mini Holidays,00712D
Gloucester City Council,23UE,Tourism Marketing,LT100,Contract Cleaning,3620,Cleaning materials,23/04/2014,382805,11.55,NET,Robert Hall Business Equipment Ltd,19925B
Gloucester City Council,23UE,Tourism Marketing,LT100,Uniforms,5201,TIC: Name badges,23/04/2014,382679,37.7,NET,Akorn Badges,51779S
Gloucester City Council,23UE,Wake Room,HC501,Catering Provisions -Food,5110,Arbor: food,23/04/2014,382603,165.64,NET,Janes Pantry,24500W
Gloucester City Council,23UE,Wake Room,HC501,Catering Provisions -Food,5110,Food,23/04/2014,382870,56.17,NET,Total Produce Gloucester,12645E
Gloucester City Council,23UE,Wake Room,HC501,Catering Provisions -Food,5110,Food,23/04/2014,382871,45.98,NET,Total Produce Gloucester,12645E
Gloucester City Council,23UE,Wake Room,HC501,Catering Provisions -Food,5110,Food,23/04/2014,382872,34,NET,Total Produce Gloucester,12645E
Gloucester City Council,23UE,Wake Room,HC501,Catering Provisions -Food,5110,Food,23/04/2014,382873,28.92,NET,Total Produce Gloucester,12645E
Gloucester City Council,23UE,Wake Room,HC501,Catering Provisions -Food,5110,Food,23/04/2014,382874,15.87,NET,Total Produce Gloucester,12645E
Gloucester City Council,23UE,Wake Room,HC501,Catering Provisions -Food,5110,Food,23/04/2014,382875,44.03,NET,Total Produce Gloucester,12645E
Gloucester City Council,23UE,Wake Room,HC501,Catering Provisions -Food,5110,Food,23/04/2014,382876,33.06,NET,Total Produce Gloucester,12645E
Gloucester City Council,23UE,Wake Room,HC501,Catering Provisions -Food,5110,Food,23/04/2014,382877,36.23,NET,Total Produce Gloucester,12645E
Gloucester City Council,23UE,Wake Room,HC501,Catering Provisions -Food,5110,Food,23/04/2014,382878,27.19,NET,Total Produce Gloucester,12645E
Gloucester City Council,23UE,Wake Room,HC501,Catering Provisions -Food,5110,Food,23/04/2014,382883,126.44,NET,3663,55585U
Gloucester City Council,23UE,Wake Room,HC501,Catering Provisions -Food,5110,Food,23/04/2014,382884,154.74,NET,3663,55585U
Gloucester City Council,23UE,Wake Room,HC501,Catering Provisions -Food,5110,Food,23/04/2014,382888,230.5,NET,3663,55585U
Gloucester City Council,23UE,Wake Room,HC501,Catering Provisions -Food,5110,Food,23/04/2014,382889,167.07,NET,3663,55585U
Gloucester City Council,23UE,Wake Room,HC501,Catering Provisions -Food,5110,The Arbor: Janes Pantry food,23/04/2014,382235,72.21,NET,Janes Pantry,24500W
Gloucester City Council,23UE,Wake Room,HC501,Cleaning Materials,3600,Food,23/04/2014,382886,27.18,NET,3663,55585U
Gloucester City Council,23UE,Wake Room,HC501,Cleaning Materials,3600,Food,23/04/2014,382890,47.98,NET,3663,55585U
Gloucester City Council,23UE,Wake Room,HC501,Maint Agreements - Buildings,3010,Monthly machine warranty,23/04/2014,379910,61.58,NET,Caffeica Ltd,11923J
Gloucester City Council,23UE,Wake Room,HC501,Other Minor Supplies Services,5590,flowers,23/04/2014,382859,20.8,NET,Carols Fruit & Flower Basket,01274X
Gloucester City Council,23UE,Blackfriars,LA609,Materials For Sale,5080,Sale of Artwork,24/04/2014,382959,60,NET,REDACTED,REDACTED
Gloucester City Council,23UE,Blackfriars,LA609,Sale Of Goods And Services,9230,Sale of Artwork,24/04/2014,382959,-7.5,NET,REDACTED,REDACTED
Gloucester City Council,23UE,Blackfriars Priory,RY207,Capital General Repairs & Main,0013,BLACKFRIARS,24/04/2014,382967,2000,CAP,Airsculpt Ltd,14545R
Gloucester City Council,23UE,Business Support,PT250,Oper. Leases -Vehs/M. Plant,4054,Various Vehicle & Equip 31/3/14-30/3/15,24/04/2014,380188,1863.82,NET,Chrystal Consulting,03429X
Gloucester City Council,23UE,Business Transformation & Tech,RT700,Computer Consumables,5422,"BT&T: extention lead, cable tube",24/04/2014,382939,73.02,NET,Cpc,52980M
Gloucester City Council,23UE,Business Transformation & Tech,RT700,Computer Consumables,5422,BT&T: Keyboard & mouse,24/04/2014,382853,156.75,NET,Dell Computers Corporation Ltd,55920C
Gloucester City Council,23UE,Business Transformation & Tech,RT700,Computer Software Maintenance,5427,Council tax support system (inc eComms),24/04/2014,381042,7000,NET,Civica Uk Ltd,10841X
Gloucester City Council,23UE,Business Transformation & Tech,RT700,Computer Software Maintenance,5427,credit card processing systems,24/04/2014,382096,5912.38,NET,Clarity Retail Systems,10290R
Gloucester City Council,23UE,Cemeteries,HC300,Oper Leases - Equipment,5029,Various Vehicle & Equip 31/3/14-30/3/15,24/04/2014,380188,12121.15,NET,Chrystal Consulting,03429X
Gloucester City Council,23UE,Cemeteries,HC300,Oper. Leases -Vehs/M. Plant,4054,Various Vehicle & Equip 31/3/14-30/3/15,24/04/2014,380188,12725.82,NET,Chrystal Consulting,03429X
Gloucester City Council,23UE,Cems/Crems Admin,HC100,Maintenance Of Equipment,5030,Crem: furniture,24/04/2014,382837,86,NET,Furniture@Work Ltd,01124U
Gloucester City Council,23UE,City Museum And Art Gallery,LM200,Exhibits And Collections,5038,"City museum intro board, interpret panel",24/04/2014,382108,785,NET,Alpha Colour Printers Ltd,00945B
Gloucester City Council,23UE,Civic Admin And Hospitality,RC210,Routine R And M - Vehicles,4011,"WN04ZVT - Mot, service, parts",24/04/2014,382946,237.58,NET,John Dandy Motors,13690P
Gloucester City Council,23UE,Civica Fod Contract,RT260,Contracted Services,6970,Core Rev&Ben charges 1/4/14-30/6/2014,24/04/2014,382062,191455.02,NET,Civica Uk Ltd,10841X
Gloucester City Council,23UE,Client Revs & Bens Contract,RT240,Bailiffs Fees,5368,fees & VAT,24/04/2014,382846,306.73,NET,Bristow & Sutor,05450M
Gloucester City Council,23UE,Contact Centre,RB300,Basic Pay -Admin /Prof Staff,2601,REDACTED,24/04/2014,381941,819.5,NET,Cps Anystaff Recruitment Ltd,13945D
Gloucester City Council,23UE,Contact Centre,RB300,Basic Pay -Admin /Prof Staff,2601,REDACTED,24/04/2014,382677,814,NET,Cps Anystaff Recruitment Ltd,13945D
Gloucester City Council,23UE,Contact Centre,RB300,Basic Pay -Admin /Prof Staff,2601,REDACTED,24/04/2014,382678,660,NET,Cps Anystaff Recruitment Ltd,13945D
Gloucester City Council,23UE,Contact Centre,RB300,Consultants Fees,5349,Telephone Interpreting,24/04/2014,382142,24.15,NET,Prime Production Ltd,06262F
Gloucester City Council,23UE,Contact Centre,RB300,Consultants Fees,5349,Telephone Interpreting,24/04/2014,382143,26.25,NET,Prime Production Ltd,06262F
Gloucester City Council,23UE,Contact Centre,RB300,Consultants Fees,5349,Telephone Interpreting,24/04/2014,382165,90.3,NET,Prime Production Ltd,06262F
Gloucester City Council,23UE,Council Streetcare Team,HI101,Operational Equipment <5000,5012,Safety Items,24/04/2014,382526,114.75,NET,Safety Shop,06777P
Gloucester City Council,23UE,Crematorium,HC200,Cleaning Materials,3600,Supply of Disposal unit,24/04/2014,382615,16.78,NET,Minster Cleaning Services,02158R
Gloucester City Council,23UE,Docks Complex - Telephones,RB120,Mobile Phones,5409,Phone Charges,24/04/2014,382527,15.32,NET,Vodafone Ltd,53527D
Gloucester City Council,23UE,Docks Complex - Telephones,RB120,Telephones And Fax,5410,Phone Charges,24/04/2014,382522,15.21,NET,Virgin Media Payments Ltd,09376J
Gloucester City Council,23UE,Docks Complex - Telephones,RB120,Telephones And Fax,5410,Phone Charges,24/04/2014,382523,33,NET,Virgin Media Payments Ltd,09376J
Gloucester City Council,23UE,Docks Complex - Telephones,RB120,Telephones And Fax,5410,Phone Charges,24/04/2014,382524,80,NET,Virgin Media Payments Ltd,09376J
Gloucester City Council,23UE,Environmental Planning,LM340,Operational Materials,5070,Picket fencing,24/04/2014,382038,398,NET,Greenfields Garden Services Ltd,48130G
Gloucester City Council,23UE,Gloucester Guildhall,LA100,Cleaning Materials,3600,Guildhall: hygiene related items.,24/04/2014,382470,413.55,NET,Gpp Hygiene,06080P
Gloucester City Council,23UE,Guildhall Bar And Caf�,LA210,Operational Equipment <5000,5012,window etching cafe/bar,24/04/2014,382836,519.6,NET,Hanman Split Ltd,56889J
Gloucester City Council,23UE,REDACTED,REDACTED,REDACTED,REDACTED,REDACTED,24/04/2014,REDACTED,214.24,NET,REDACTED,REDACTED
Gloucester City Council,23UE,REDACTED,REDACTED,REDACTED,REDACTED,REDACTED,24/04/2014,REDACTED,43.9,NET,REDACTED,REDACTED
Gloucester City Council,23UE,REDACTED,REDACTED,REDACTED,REDACTED,REDACTED,24/04/2014,REDACTED,100,NET,REDACTED,REDACTED
Gloucester City Council,23UE,REDACTED,REDACTED,REDACTED,REDACTED,REDACTED,24/04/2014,REDACTED,650,NET,REDACTED,REDACTED
Gloucester City Council,23UE,REDACTED,REDACTED,REDACTED,REDACTED,REDACTED,24/04/2014,REDACTED,375,NET,REDACTED,REDACTED
Gloucester City Council,23UE,REDACTED,REDACTED,REDACTED,REDACTED,REDACTED,24/04/2014,REDACTED,900,NET,REDACTED,REDACTED
Gloucester City Council,23UE,REDACTED,REDACTED,REDACTED,REDACTED,REDACTED,24/04/2014,REDACTED,100,NET,REDACTED,REDACTED
Gloucester City Council,23UE,REDACTED,REDACTED,REDACTED,REDACTED,REDACTED,24/04/2014,REDACTED,100,NET,REDACTED,REDACTED
Gloucester City Council,23UE,REDACTED,REDACTED,REDACTED,REDACTED,REDACTED,24/04/2014,REDACTED,100,NET,REDACTED,REDACTED
Gloucester City Council,23UE,REDACTED,REDACTED,REDACTED,REDACTED,REDACTED,24/04/2014,REDACTED,527.48,NET,REDACTED,REDACTED
Gloucester City Council,23UE,REDACTED,REDACTED,REDACTED,REDACTED,REDACTED,24/04/2014,REDACTED,100,NET,REDACTED,REDACTED
Gloucester City Council,23UE,REDACTED,REDACTED,REDACTED,REDACTED,REDACTED,24/04/2014,REDACTED,115,NET,REDACTED,REDACTED
Gloucester City Council,23UE,REDACTED,REDACTED,REDACTED,REDACTED,REDACTED,24/04/2014,REDACTED,146.85,NET,REDACTED,REDACTED
Gloucester City Council,23UE,Health And Safety,HD300,Training Course Fees,5367,course: dealing with fatalities,24/04/2014,382774,300,NET,Birmingham City Council,59477J
Gloucester City Council,23UE,Homelessness,CH120,Rent In Advance,5516,REDACTED,24/04/2014,382965,270,NET,REDACTED,REDACTED
Gloucester City Council,23UE,Homelessness,CH120,Rent In Advance,5516,Underpayment of rent in advance,24/04/2014,382936,88.73,NET,REDACTED,REDACTED
Gloucester City Council,23UE,Homelessness,CH120,Rent In Advance,5516,Underpayment of rent in advance,24/04/2014,382937,77.2,NET,REDACTED,REDACTED
Gloucester City Council,23UE,Homelessness Prevention,CH122,Fees For Services Received,5350,REDACTED,24/04/2014,382965,300,NET,REDACTED,REDACTED
Gloucester City Council,23UE,Housing Strategy & Enabling,CH110,Conference/Meeting Expenses,5510,REDACTED,24/04/2014,382940,234,NET,Ark Housing Consultancy,01778L
Gloucester City Council,23UE,Legal Services,RS200,Basic Pay -Admin /Prof Staff,2601,REDACTED,24/04/2014,382815,638.75,NET,Michael Page International Recruitment Ltd,06601P
Gloucester City Council,23UE,Legal Services,RS200,Basic Pay -Admin /Prof Staff,2601,REDACTED,24/04/2014,382816,1006.25,NET,Michael Page International Recruitment Ltd,06601P
Gloucester City Council,23UE,Off Street Car Parks,PP110,Pcn Charges,9450,REDACTED,24/04/2014,382960,25,NET,REDACTED,REDACTED
Gloucester City Council,23UE,Parks Contract Management,LP100,Maint Of Grounds - General,3030,"Glos Park,Bakers Field site,Tarmac repair",24/04/2014,382767,359,NET,Greenfields Garden Services Ltd,48130G
Gloucester City Council,23UE,Pest Control,HD400,Oper. Leases -Vehs/M. Plant,4054,Various Vehicle & Equip 31/3/14-30/3/15,24/04/2014,380188,3033.51,NET,Chrystal Consulting,03429X
Gloucester City Council,23UE,Postal Services,RS120,Postages,5400,Post 14-27 March,24/04/2014,381982,1484.37,NET,Royal Mail S.Wales & South West,35830S
Gloucester City Council,23UE,Superbreak,LT104,Materials For Sale,5080,London Heathrow Hotel 30/06/2014,24/04/2014,382948,139,NET,Superbreak Mini Holidays,00712D
Gloucester City Council,23UE,Superbreak,LT104,Sale Of Goods And Services,9230,London Heathrow Hotel 30/06/2014,24/04/2014,382948,-11.58,NET,Superbreak Mini Holidays,00712D
Gloucester City Council,23UE,Website Rebuild,RY573,Consultants Fees,0030,New Daily Rate,24/04/2014,382954,1013.6,CAP,Patzone It Solutions Ltd,13059R
Gloucester City Council,23UE,Allotments,HI104,Operational Equipment <5000,5012,Lock,25/04/2014,381488,20.4,NET,Gloucester Locksmiths,18160C
Gloucester City Council,23UE,Allotments,HI104,Operational Equipment <5000,5012,Reimbursement for plumbing parts,25/04/2014,382968,36.14,NET,REDACTED,REDACTED
Gloucester City Council,23UE,Aspire Admin Charges,LC105,Contracted Services,6970,APRIL 2014 MANAGEMENT FEES,25/04/2014,382052,71458.92,NET,Aspire Sports & Cultural Trust,08135V
Gloucester City Council,23UE,Aspire Admin Charges,LC105,Contracted Services,6970,credited part of invoice 40105327,25/04/2014,383041,8333.58,NET,Aspire Sports & Cultural Trust,08135V
Gloucester City Council,23UE,Blackfriars Priory,RY207,Capital General Repairs & Main,0013,Blackfriars: decorating,25/04/2014,382771,1645.5,CAP,Gloucester Flooring Centre,14572M
Gloucester City Council,23UE,Business Transformation & Tech,RT700,Basic Pay - Temporary Staff,2751,REDACTED,25/04/2014,382511,5442.5,NET,Vector Resourcing Ltd,11664K
Gloucester City Council,23UE,Business Transformation & Tech,RT700,Computer Software Maintenance,5427,Annual Subscription,25/04/2014,382145,840,NET,Parker Software,14223T
Gloucester City Council,23UE,City Museum And Art Gallery,LM200,Operational Equipment <5000,5012,"City Museum: Printed Latex, Quartz purpl",25/04/2014,383016,290,NET,Banners & Balloons,58000D
Gloucester City Council,23UE,City Museum And Art Gallery,LM200,Publications For Sale,5064,Personalised Mugs,25/04/2014,383026,1309.76,NET,We Brand It,14365V
Gloucester City Council,23UE,City Museum And Art Gallery,LM200,Sewerage And Environ Charges,3402,City Museum: medical waste,25/04/2014,381951,41.22,NET,Ocs Group Uk Limited T/A Cannon,06506A
Gloucester City Council,23UE,Civica Admin Charges,RT105,Photocopying,5320,PHOTOCOPY CHARGES 1/12/13-19/2/14,25/04/2014,383036,376.15,NET,Ricoh Uk Ltd,07519F
Gloucester City Council,23UE,Community Safety Projects,FP500,Basic Pay -Admin /Prof Staff,2601,REDACTED,25/04/2014,382818,534.65,NET,Travail Employment Ltd,49371W
Gloucester City Council,23UE,Contact Centre,RB300,Basic Pay -Admin /Prof Staff,2601,REDACTED,25/04/2014,382777,814,NET,Cps Anystaff Recruitment Ltd,13945D
Gloucester City Council,23UE,Disabled Facilities Grants,CY013,Disabled Facility Grants,0074,REDACTED,25/04/2014,383040,1282.5,CAP,Tpg Disableaids,51324R
Gloucester City Council,23UE,Docks Complex - Telephones,RB120,Telephones And Fax,5410,Phone Charges,25/04/2014,382862,249.3,NET,Virgin Media Business,01869B
Gloucester City Council,23UE,Folk Museum,LM210,Publications For Sale,5064,Replica Items,25/04/2014,383029,405.5,NET,Memorabilia Pack Company,04100E
Gloucester City Council,23UE,Gloucester Guildhall,LA100,Maintenance Of Equipment,5030,Guildhall: seating inspection,25/04/2014,382251,670.8,NET,Audience Systems,01215P
Gloucester City Council,23UE,Group Mgr Financial Services,GO100,Vocational Training,2970,Civic Conference,25/04/2014,381832,195,NET,Malvern Hills District Council,57298F
Gloucester City Council,23UE,Herbert Reception Upgrade,RY201,Contract Payments,0020,Repeat print promotional sashes,25/04/2014,383012,64.99,CAP,Frosts,14569A
Gloucester City Council,23UE,Homelessness,CH120,Rent In Advance,5516,REDACTED,25/04/2014,383039,484.6,NET,REDACTED,REDACTED
Gloucester City Council,23UE,Homelessness Prevention,CH122,Fees For Services Received,5350,REDACTED,25/04/2014,383039,550,NET,REDACTED,REDACTED
Gloucester City Council,23UE,Postal Services,RS120,Postages,5400,Evolution Value,25/04/2014,383028,967.45,NET,Premier Paper Group Ltd,09166Y
Gloucester City Council,23UE,Registration Of Electors,RS400,Postages,5400,Post,25/04/2014,383025,873.65,NET,Royal Mail S.Wales & South West,35830S
Gloucester City Council,23UE,Registration Of Electors,RS400,Publications,5060,Schofields election law,25/04/2014,383024,158,NET,Thomson Reuters,43110M
Gloucester City Council,23UE,Registration Of Electors,RS400,Stationery,5302,Elect Reg: Resposne envelopes,25/04/2014,381477,150,NET,Alpha Response Print & Mail Ltd,03029U
Gloucester City Council,23UE,Swrda Asset Transfer,RY184,Contract Payments,0020,Glos docks - Lease arrangement,25/04/2014,382591,3670,CAP,Harrison Clark Rickerbys Solicitors,11064C
Gloucester City Council,23UE,Aspire Admin Charges,LC105,Fees For Services Received,5350,Aspire: Pensions,28/04/2014,382051,160,NET,Aspire Sports & Cultural Trust,08135V
Gloucester City Council,23UE,Blackfriars,LA609,Maintenance Of Equipment,5030,Guildhall speakers stand & handling,28/04/2014,382238,122.85,NET,Cpc,52980M
Gloucester City Council,23UE,Blackfriars Catering,LA220,Catering Provisions -Liquor,5111,Guildhall: various goods,28/04/2014,383080,134,NET,Gerry Dance Disposables Ltd,54579Y
Gloucester City Council,23UE,Business Support,PT250,Fuel,4012,fuel,28/04/2014,382778,248.12,NET,Allstar Business Solutions Ltd (Arval),06594A
Gloucester City Council,23UE,Business Support,PT250,Fuel,4012,fuel invoice date 26/3/2014,28/04/2014,382057,101.8,NET,Allstar Business Solutions Ltd (Arval),06594A
Gloucester City Council,23UE,City Museum And Art Gallery,LM200,Advertising And Publicity,5702,Gloucestershire Revealed / Harwell,28/04/2014,383083,350,NET,Gloucestershire County Council,18650D
Gloucester City Council,23UE,City Museum And Art Gallery,LM200,Care Of Collections,5039,Gloucestershire Revealed / Harwell,28/04/2014,383083,28,NET,Gloucestershire County Council,18650D
Gloucester City Council,23UE,City Museum And Art Gallery,LM200,Publications For Sale,5064,Artwork Sale -15% commission city Museum,28/04/2014,383092,800,NET,REDACTED,REDACTED
Gloucester City Council,23UE,City Museum And Art Gallery,LM200,Publications For Sale,5064,commisson sale of Rich3 mugs & postcards,28/04/2014,383093,37.97,NET,REDACTED,REDACTED
Gloucester City Council,23UE,City Museum And Art Gallery,LM200,Sale Of Goods And Services,9230,Artwork Sale -15% commission city Museum,28/04/2014,383092,-100,NET,REDACTED,REDACTED
Gloucester City Council,23UE,Client Revs & Bens Contract,RT240,Fees For Services Received,5350,Insurance,28/04/2014,381943,8266.42,NET,Gemini Consultants Ltd,52177U
Gloucester City Council,23UE,Crematorium,HC200,Memorial Plaques,5053,Crem: Bronze Cast Plaque,28/04/2014,381158,48,NET,Arkell & Hurcombe,59812T
Gloucester City Council,23UE,Crematorium,HC200,Memorial Plaques,5053,Crem: Bronze Plaques & Brass Stem,28/04/2014,381159,150,NET,Arkell & Hurcombe,59812T
Gloucester City Council,23UE,Development Management,PT200,Application Fees,9312,REDACTED,28/04/2014,383090,40,NET,REDACTED,REDACTED
Gloucester City Council,23UE,Development Management,PT200,Application Fees,9312,REDACTED,28/04/2014,383091,385,NET,REDACTED,REDACTED
Gloucester City Council,23UE,Docks Complex - Services,RB100,Cleaning Materials,3600,North warehouse: toilet rolls,28/04/2014,381889,59.76,NET,Cleanmy Ltd,06971S
Gloucester City Council,23UE,Financial Services,RT200,Basic Pay - Temporary Staff,2751,REDACTED,28/04/2014,382811,597.03,NET,Robert Half Ltd,03959K
Gloucester City Council,23UE,Financial Services,RT200,Basic Pay - Temporary Staff,2751,REDACTED,28/04/2014,382136,563.14,NET,Robert Half Ltd,03959K
Gloucester City Council,23UE,Financial Services,RT200,Consultants Fees,5349,REDACTED,28/04/2014,382809,2175,NET,Robert Half Ltd,03959K
Gloucester City Council,23UE,Financial Services,RT200,Fees For Services Received,5350,Standard UK 29/3/14 to 29/3/15,28/04/2014,383084,1146,NET,Creditsafe Business Solutions Ltd,06189P
Gloucester City Council,23UE,Financial Services,RT200,Fees For Services Received,5350,U shaped curtain rail,28/04/2014,381232,42.91,NET,Akw Medi-Care Ltd,13094N
Gloucester City Council,23UE,General Drainage Works,PY241,Contract Payments,0020,Saintbridge; widen access track,28/04/2014,383081,5000,CAP,Environment Agency,55172A
Gloucester City Council,23UE,Gloucester Guildhall,LA100,Maintenance Of Equipment,5030,Scaff tag inspection of tower 19/4/14,28/04/2014,382063,138.5,NET,Global Platforms Ltd,09794K
Gloucester City Council,23UE,Grant Aid,LP205,Water Supply,3400,Robinswood Hill park:WaterSuppInstall,28/04/2014,382858,1025,NET,REDACTED,REDACTED
Gloucester City Council,23UE,Guildhall Bar And Caf�,LA210,Catering Provisions -Liquor,5111,guildhall: alcohol,28/04/2014,383079,80,NET,Gloucester Brewery,13373F
Gloucester City Council,23UE,Guildhall Bar And Caf�,LA210,Catering Provisions -Liquor,5111,Guildhall: alcohol,28/04/2014,383078,114,NET,Gloucester Brewery,13373F
Gloucester City Council,23UE,Hempsted Market/Car Boot,HM234,Hire Of Equipment,5020,Portable Office,28/04/2014,381973,254.19,NET,Portable Offices (Hire ) Ltd*,06286R
Gloucester City Council,23UE,Hempsted Market/Car Boot,HM234,Sewerage And Environ Charges,3402,Markets Serv: toilets,28/04/2014,383015,446.6,NET,Abbey Loos Limited,10787B
Gloucester City Council,23UE,Housing Works In Default,HD500,Clearance And Cleansing Fees,5384,5 Archdeacon St: Secure window,28/04/2014,383089,175,NET,Davey's Building Maintenance,57010K
Gloucester City Council,23UE,Mortgage Rescue,CH128,Fees For Services Received,5350,REDACTED,28/04/2014,383031,30.6,NET,One To One Recruitment,04752H
Gloucester City Council,23UE,Retail Market - Landlord,HM300,Window Cleaning,3610,Eastgate Mkt:Monthly window clean Apr14,28/04/2014,383014,140,NET,Cornwall Cleaning Services,14050A
Gloucester City Council,23UE,Asset Management,RS300,Basic Pay - Temporary Staff,2751,REDACTED,29/04/2014,381605,1795.87,NET,Abatec Ltd,14249Y
Gloucester City Council,23UE,Building Control,PT400,Basic Pay - Temporary Staff,2751,REDACTED,29/04/2014,382597,48,NET,Brg Interim Solutions,14065L
Gloucester City Council,23UE,Business Transformation & Tech,RT700,Basic Pay - Temporary Staff,2751,BT&T: 20 hrs consultancy,29/04/2014,383123,600,NET,Ffox Software Ltd,10665T
Gloucester City Council,23UE,Cems/Crems Admin,HC100,Maintenance Of Equipment,5030,Crem: Prepaid resonse gas detection,29/04/2014,383124,550,NET,Crowcon Detection Instruments Limited,07233D
Gloucester City Council,23UE,City Museum And Art Gallery,LM200,Advertising And Publicity,5702,Museums: Distribute What's on Jan/June14,29/04/2014,377961,319.4,NET,Glide Media,58829J
Gloucester City Council,23UE,Civica Admin Charges,RT105,Photocopying,5320,Click Charge,29/04/2014,383037,205.4,NET,Ricoh Uk Ltd,07519F
Gloucester City Council,23UE,Contact Centre,RB300,Basic Pay -Admin /Prof Staff,2601,Temporary Staff w/e 18/04/2014,29/04/2014,383034,1381.55,NET,One To One Recruitment,04752H
Gloucester City Council,23UE,Council Streetcare Team,HI101,General Repair/Maint Buildings,3000,Camlock fee series,29/04/2014,383126,12.5,NET,Autopa Ltd,00019B
Gloucester City Council,23UE,Countryside Unit,LP201,Clothing,5200,countryside: various,29/04/2014,383134,4.97,NET,Countrywide Farmers*,55687J
Gloucester City Council,23UE,Countryside Unit,LP201,Livestock Foodstuff,5841,countryside: various,29/04/2014,383134,77.92,NET,Countrywide Farmers*,55687J
Gloucester City Council,23UE,Docks Complex - Services,RB100,Cleaning Materials,3600,The docks: various hygiene products,29/04/2014,383087,96.78,NET,Core Hygiene Ltd,03885P
Gloucester City Council,23UE,Folk Museum,LM210,Advertising And Publicity,5702,Museums: Distribute What's on Jan/June14,29/04/2014,377961,319.4,NET,Glide Media,58829J
Gloucester City Council,23UE,Green Transport Policy,PJ130,Overtime - Cleaners,2403,WP110BY - Smart for two coupe,29/04/2014,382058,287.35,NET,Daimler Fleet Management,07828N
Gloucester City Council,23UE,Guildhall Bar And Caf�,LA210,Catering Provisions -Food,5110,Guildhall: food 27/4/2014,29/04/2014,383130,49.6,NET,Janes Pantry,24500W
Gloucester City Council,23UE,REDACTED,REDACTED,REDACTED,REDACTED,REDACTED,29/04/2014,REDACTED,607.78,NET,REDACTED,REDACTED
Gloucester City Council,23UE,Hempsted Market/Car Boot,HM234,Maint Of Grounds - General,3030,Grass Cutting Hempsted Meadows,29/04/2014,383139,400,NET,REDACTED,REDACTED
Gloucester City Council,23UE,Herbert Reception Upgrade,RY201,Contract Payments,0020,CD Roms Glos City centre,29/04/2014,382770,369,CAP,Commission Air,58974Y
Gloucester City Council,23UE,Herbert Reception Upgrade,RY201,Contract Payments,0020,Chair,29/04/2014,382838,120,CAP,Furniture Recycling Project,51707U
Gloucester City Council,23UE,Herbert Reception Upgrade,RY201,Contract Payments,0020,Com&Marketing: Polo shirt embroidered,29/04/2014,383122,26.67,CAP,Hudson & Co,49730P
Gloucester City Council,23UE,Herbert Reception Upgrade,RY201,Contract Payments,0020,Security Staff,29/04/2014,382129,3597.6,CAP,Nsgl Ltd,12539E
Gloucester City Council,23UE,Hmo Licences,HE520,Other Minor Supplies Services,5590,Building Design - wellies,29/04/2014,381937,147.43,NET,Countrywide Farmers*,55687J
Gloucester City Council,23UE,Investment Property,RB500,Fire Alarm Maintenance,3053,Attendance of fire alarm sys,29/04/2014,381939,2585.84,NET,Adt Fire & Security Plc,54086D
Gloucester City Council,23UE,Investment Property,RB500,General Repair/Maint Buildings,3000,REDACTED,29/04/2014,376954,47.46,NET,Adt Fire & Security Plc,54086D
Gloucester City Council,23UE,Investment Property,RB500,General Repair/Maint Buildings,3000,REDACTED,29/04/2014,376953,53.16,NET,Adt Fire & Security Plc,54086D
Gloucester City Council,23UE,Legal Services,RS200,Basic Pay -Admin /Prof Staff,2601,REDACTED,29/04/2014,383137,1041.25,NET,Michael Page International Recruitment Ltd,06601P
Gloucester City Council,23UE,The Fleece,RB530,General Repair/Maint Buildings,3000,Fleece Hotel equipment,29/04/2014,383082,27.12,NET,Ermin Plant Hire & Services Ltd,14150V
Gloucester City Council,23UE,Tourism Marketing,LT100,Window Cleaning,3610,TIC: Weekly window clean,29/04/2014,383131,12,NET,Initial Facilities Window Cleaning,00442K
Gloucester City Council,23UE,Utilities,PT502,Electricity Supply,3110,6 EASTGATE MARKET,29/04/2014,382584,65.55,NET,Southern Electric,05714A
Gloucester City Council,23UE,Utilities,PT502,Electricity Supply,3110,BARBICAN HOUSE,29/04/2014,382966,107.73,NET,West Mercia Energy,11669Z
Gloucester City Council,23UE,Utilities,PT502,Electricity Supply,3110,BLACKFRIARS,29/04/2014,382681,28.68,NET,British Gas,59061X
Gloucester City Council,23UE,Utilities,PT502,Electricity Supply,3110,UNIT 1 1-6 NORTHGATE ST,29/04/2014,382587,896.98,NET,Southern Electric,05714A
Gloucester City Council,23UE,Utilities,PT502,Electricity Supply,3110,UNIT 5 NORTHGATE ST,29/04/2014,382585,16.07,NET,Southern Electric,05714A
Gloucester City Council,23UE,Utilities,PT502,Electricity Supply,3110,UNIT 6 1-6 NORTHGATE ST,29/04/2014,382586,896.98,NET,Southern Electric,05714A
Gloucester City Council,23UE,Wake Room,HC501,Operational Equipment <5000,5012,"Nisbet - Juice glass, teapot, jug",29/04/2014,379731,80.2,NET,Nisbets,55372P
Gloucester City Council,23UE,Wake Room,HC501,Operational Equipment <5000,5012,Tongs,29/04/2014,381561,8.98,NET,Nisbets,55372P
Gloucester City Council,23UE,Asset Management,RS300,Basic Pay - Temporary Staff,2751,REDACTED,30/04/2014,383201,1362.23,NET,Hays Specialist Recruitment Ltd,55516P
Gloucester City Council,23UE,Asset Management,RS300,Basic Pay - Temporary Staff,2751,REDACTED,30/04/2014,383202,1325.44,NET,Hays Specialist Recruitment Ltd,55516P
Gloucester City Council,23UE,Business Transformation & Tech,RT700,Computer Network Maintenance,5443,Herbert Wse: 2 x Cisco - networking,30/04/2014,382116,1523.84,NET,Cablecom Networking Ltd,56318L
Gloucester City Council,23UE,City Museum And Art Gallery,LM200,Advertising And Publicity,5702,Adverts,30/04/2014,381984,25,NET,Local World Ltd,08556P
Gloucester City Council,23UE,City Museum And Art Gallery,LM200,Advertising And Publicity,5702,Museum: cotswold attraction guide,30/04/2014,383179,325,NET,Gfirst Ltd,12918S
Gloucester City Council,23UE,City Museum And Art Gallery,LM200,Subscriptions,5600,Membership Fee 14-15,30/04/2014,383215,405,NET,Modes Users Association,52797E
Gloucester City Council,23UE,Civil Parking Enforcement,PT741,Computer Software Maintenance,5427,CHIPSIDE LTD,30/04/2014,379215,451.42,NET,Chipside Ltd,06535T
Gloucester City Council,23UE,Client Revs & Bens Contract,RT240,Bailiffs Fees,5368,Fees & VAT,30/04/2014,383132,326.49,NET,Bristow & Sutor,05450M
Gloucester City Council,23UE,Corporate Reporting /Financing,RC504,Fees For Services Received,5350,Glos Govt pension scheme inc Aspire,30/04/2014,382602,2019.6,NET,Gloucestershire County Council,10614L
Gloucester City Council,23UE,Corporate Reporting /Financing,RC504,Fees For Services Received,5350,Local government pension scheme,30/04/2014,382773,1910.7,NET,Gloucestershire County Council,10614L
Gloucester City Council,23UE,Crematorium,HC200,Fees For Services Received,5350,April 14 Crem Doctors Fees,30/04/2014,383242,823.6,NET,REDACTED,REDACTED
Gloucester City Council,23UE,Crematorium,HC200,Fees For Services Received,5350,Crem April 14 Doctors Fees,30/04/2014,383243,974.08,NET,REDACTED,REDACTED
Gloucester City Council,23UE,Crematorium,HC200,Fees For Services Received,5350,Crem April 14 Doctors Fees,30/04/2014,383244,651.76,NET,REDACTED,REDACTED
Gloucester City Council,23UE,Docks Complex - Services,RB100,Fire Risk Assessment,3019,Philpots: additional Door Closers,30/04/2014,381882,472,NET,Hills Construction South West Ltd,13331Y
Gloucester City Council,23UE,Docks Complex - Services,RB100,Repair/Maint Of Fixed Plant,3006,Hydrotap,30/04/2014,383230,391.11,NET,Zip Heaters (Uk) Ltd,13125D
Gloucester City Council,23UE,Dwelling Improvements,BY008,Contract Payments,0020,MARCH 2014 CAPITAL FEES,30/04/2014,382844,1279469.36,CAP,Gloucester City Homes,05244T
Gloucester City Council,23UE,Folk Museum,LM210,Advertising And Publicity,5702,Adverts,30/04/2014,381984,25,NET,Local World Ltd,08556P
Gloucester City Council,23UE,Folk Museum,LM210,Advertising And Publicity,5702,Museum: cotswold attraction guide,30/04/2014,383179,325,NET,Gfirst Ltd,12918S
Gloucester City Council,23UE,Folk Museum,LM210,Maint Agreements - Fixed Plant,3011,Ciy Museum - alarm activation call out,30/04/2014,383177,31,NET,Glevum Security Ltd,03249B
Gloucester City Council,23UE,Folk Museum,LM210,Maint Agreements - Fixed Plant,3011,Foljjk museu: alarm activation 8/2/2014,30/04/2014,383178,31,NET,Glevum Security Ltd,03249B
Gloucester City Council,23UE,Gf Lifelinks,CH180,Contracted Services,6970,"GCH: Apr14-Mgmt, repair, lifelink etc",30/04/2014,382945,5270.83,NET,Gloucester City Homes,05244T
Gloucester City Council,23UE,Guildhall Bar And Caf�,LA210,Catering Provisions -Food,5110,Food,30/04/2014,383241,68.95,NET,Woodward Foodservice,10714F
Gloucester City Council,23UE,Homelessness,CH120,Board And Lodging,5515,March 2014 voids,30/04/2014,382856,735.19,NET,Gloucester City Homes,05244T
Gloucester City Council,23UE,Homelessness,CH120,Rent In Advance,5516,REDACTED,30/04/2014,383249,346.36,NET,Surelet,06858N
Gloucester City Council,23UE,Homelessness,CH120,Rent In Advance,5516,REDACTED,30/04/2014,383245,270,NET,REDACTED,REDACTED
Gloucester City Council,23UE,Homelessness,CH120,Rent In Advance,5516,REDACTED,30/04/2014,383224,582.68,NET,REDACTED,REDACTED
Gloucester City Council,23UE,Homelessness,CH120,Rent In Advance,5516,REDACTED,30/04/2014,383247,484.6,NET,REDACTED,REDACTED
Gloucester City Council,23UE,Homelessness,CH120,Rent In Advance,5516,REDACTED,30/04/2014,383246,354.16,NET,Surelet,06858N
Gloucester City Council,23UE,Homelessness,CH120,Rent In Advance,5516,REDACTED,30/04/2014,383248,270,NET,REDACTED,REDACTED
Gloucester City Council,23UE,Homelessness Prevention,CH122,Fees For Services Received,5350,REDACTED,30/04/2014,383224,600,NET,REDACTED,REDACTED
Gloucester City Council,23UE,Homelessness Prevention,CH122,Fees For Services Received,5350,REDACTED,30/04/2014,383247,500,NET,REDACTED,REDACTED
Gloucester City Council,23UE,Homelessness Prevention,CH122,Fees For Services Received,5350,REDACTED,30/04/2014,383246,600,NET,Surelet,06858N
Gloucester City Council,23UE,Investment Property,RB500,Fire Alarm Maintenance,3053,line charges,30/04/2014,382399,368.83,NET,Adt Fire & Security Plc,54086D
Gloucester City Council,23UE,Investment Property,RB500,Lift Maintenance,3051,GUILDHALL,30/04/2014,380827,187.51,NET,Stannah Lift Services Ltd,41700C
Gloucester City Council,23UE,Tic Trading,LT110,Materials For Sale,5080,Greeting Cards,30/04/2014,383238,302,NET,REDACTED,REDACTED
Gloucester City Council,23UE,Tic Trading,LT110,Materials For Sale,5080,Keys,30/04/2014,383219,331,NET,N & C Building Products Ltd,02054E
Gloucester City Council,23UE,Tic Trading,LT110,Materials For Sale,5080,TIC: Historial guide purchases,30/04/2014,383121,49.95,NET,Black Dwarf Lightmoor Publications Ltd,59484M
Gloucester City Council,23UE,Website Rebuild,RY573,Consultants Fees,0030,BT&T: 3 days work,30/04/2014,383176,760.2,CAP,Patzone It Solutions Ltd,13059R
Gloucester City Council,23UE,Docks Complex - Telephones,RB120,Telephones And Fax,5410,Phone Charges,01/05/2014,382869,80,NET,Virgin Media Payments Ltd,09376J
Gloucester City Council,23UE,Financial Services,RT200,Basic Pay - Temporary Staff,2751,REDACTED,01/05/2014,382508,578.38,NET,Robert Half Ltd,03959K
Gloucester City Council,23UE,Financial Services,RT200,Consultants Fees,5349,REDACTED,01/05/2014,382135,3975,NET,Robert Half Ltd,03959K
Gloucester City Council,23UE,Off Street Car Parks,PP110,Computer Software Maintenance,5427,DVLA enquiry,01/05/2014,381239,60.8,NET,Chipside Ltd,06535T
Gloucester City Council,23UE,Off Street Car Parks,PP110,Computer Software Maintenance,5427,Feb14: electronic parking season ticket,01/05/2014,381236,883.42,NET,Chipside Ltd,06535T
Gloucester City Council,23UE,Off Street Car Parks,PP110,Computer Software Maintenance,5427,Feb14: Parking fees,01/05/2014,381237,434.92,NET,Chipside Ltd,06535T
,,,,,,,,Sum:,3007893.96,,,
